Body,Body Name,Date,TransNo,Amount � (Excl VAT),Supplier name,Description,Expense Area,Expense Type,Expense Code,
http://opendatacommunities.org/id/london-borough-council/sutton,London Borough of Sutton,24/10/2018,1262892,452.93 , WWW.ARGOS.CO.UK,SUTTON EQUIPMENT,Peoples Services Directorate,Education Equipment,F009,
http://opendatacommunities.org/id/london-borough-council/sutton,London Borough of Sutton,12/10/2018,1262892,19.83 , AMAZON.CO.UK,TOYS & EQUIPMENT,Peoples Services Directorate,Education Equipment,F009,
http://opendatacommunities.org/id/london-borough-council/sutton,London Borough of Sutton,13/10/2018,1262892,24.17 , AMAZON.CO.UK,TOYS & EQUIPMENT,Peoples Services Directorate,Education Equipment,F009,
http://opendatacommunities.org/id/london-borough-council/sutton,London Borough of Sutton,01/06/2018,1262973,12.49 , AMAZON UK MARKETPLACE,FIRST AID KIT,Peoples Services Directorate,First Aid and Medical Requisites,F105,
http://opendatacommunities.org/id/london-borough-council/sutton,London Borough of Sutton,29/05/2018,1262973,81.82 , SAINSBURYS TO YOU 0052,ONLINE GROCERIES,Peoples Services Directorate,Provisions - General,F150,
http://opendatacommunities.org/id/london-borough-council/sutton,London Borough of Sutton,04/06/2018,1262973,95.17 , SAINSBURYS TO YOU 0052,SAISBURYS SHOP,Peoples Services Directorate,Provisions - General,F150,
http://opendatacommunities.org/id/london-borough-council/sutton,London Borough of Sutton,22/10/2018,1262892,103.85 , SAINSBURYS TO YOU 0052,SAINSBURYS SHOP,Peoples Services Directorate,Refreshments,F155,
http://opendatacommunities.org/id/london-borough-council/sutton,London Borough of Sutton,01/10/2018,1262892,108.71 , SAINSBURYS TO YOU 0052,SAINSBURYS SHOPPING,Peoples Services Directorate,Refreshments,F155,
http://opendatacommunities.org/id/london-borough-council/sutton,London Borough of Sutton,12/06/2018,1262973,18.35 , ASDA SUPERSTORE,ASDA SHOP,Peoples Services Directorate,Refreshments,F155,
http://opendatacommunities.org/id/london-borough-council/sutton,London Borough of Sutton,19/06/2018,1262973,92.93 , SAINSBURYS TO YOU 0052,SAINSBURYS SHOP,Peoples Services Directorate,Refreshments,F155,
http://opendatacommunities.org/id/london-borough-council/sutton,London Borough of Sutton,08/10/2018,1262892,90.17 , OXYGEN FREEJUMPING,108.20 - H301 0044 9999 - OXYGEN FREEJUMPING.PNG,Peoples Services Directorate,Client Care/Assistance,H301,
http://opendatacommunities.org/id/london-borough-council/sutton,London Borough of Sutton,08/10/2018,1262892,82.02 , OXYGEN FREEJUMPING,98.42 - H301 0044 9999 - OXYGEN FREEJUMPING.PNG,Peoples Services Directorate,Client Care/Assistance,H301,
http://opendatacommunities.org/id/london-borough-council/sutton,London Borough of Sutton,02/10/2018,1262892,85.00 , PAYPAL  JUSTFORKIDS,85.00 - A520 0301 9999 - PAYPAL - STAFF TRAINING FOR YOT.PDF,Peoples Services Directorate,Staff Advertising,A500,
http://opendatacommunities.org/id/london-borough-council/sutton,London Borough of Sutton,13/06/2018,1262973,120.00 , SUTTON COLLEGE,COURSE PAID FOR LCT CLIENT,Peoples Services Directorate,Travelling and Subsistence Allowances,A530,
http://opendatacommunities.org/id/london-borough-council/sutton,London Borough of Sutton,02/10/2018,1262892,150.50 , TVLICENSING.CO.UK,BRUK HAILEMARIAM TV LICENSE,Peoples Services Directorate,Other Premises Costs,D715,
http://opendatacommunities.org/id/london-borough-council/sutton,London Borough of Sutton,24/10/2018,1262892,108.31 , ARGOS RETAIL GROUP,HOUSEHOLD ESSINTIALS,Peoples Services Directorate,Domestic Supplies,D801,
http://opendatacommunities.org/id/london-borough-council/sutton,London Borough of Sutton,15/05/2018,1262970,19.95 , WWW.CORAM.ORG.UK,BOOKS ORDERED FOR LCT,Peoples Services Directorate,Education Equipment,F009,
http://opendatacommunities.org/id/london-borough-council/sutton,London Borough of Sutton,15/05/2018,1262970,36.51 , AMAZON EU,BOOKS  FOR LCT,Peoples Services Directorate,Education Equipment,F009,
http://opendatacommunities.org/id/london-borough-council/sutton,London Borough of Sutton,08/05/2018,1262970,19.50 , VUE NCS CITB HS&E TEST,JG HEALTH & SAFETY TRAINING,Peoples Services Directorate,Education Equipment,F009,
http://opendatacommunities.org/id/london-borough-council/sutton,London Borough of Sutton,07/06/2018,1262973,(6.24), WWW.ARGOS.CO.UK,7.49 - F080 0304 9999 - ARGOS REFUND PAINTBRUSH.PDF,Peoples Services Directorate,Furniture - Purchase,F080,
http://opendatacommunities.org/id/london-borough-council/sutton,London Borough of Sutton,26/04/2018,1262970,75.50 , HM PASSPORT OFFICE,JJB PASSPORT RENEWAL,Peoples Services Directorate,Personal Requisites,F106,
http://opendatacommunities.org/id/london-borough-council/sutton,London Borough of Sutton,18/06/2018,1262973,233.50 , TRAVELODGE,TRAVELODGE,Peoples Services Directorate,Personal Requisites,F106,
http://opendatacommunities.org/id/london-borough-council/sutton,London Borough of Sutton,22/10/2018,1262892,26.44 , AMAZON.CO.UK MT1P01EM4,66.71 - F106 0304 9999 - AMAZON ORDER.PNG AMAZON SPLIT TRANSACTION.,Peoples Services Directorate,Personal Requisites,F106,
http://opendatacommunities.org/id/london-borough-council/sutton,London Borough of Sutton,22/10/2018,1262892,5.56 , AMAZON.CO.UK MT07O7394,66.71 - F106 0304 9999 - AMAZON ORDER.PNG,Peoples Services Directorate,Personal Requisites,F106,
http://opendatacommunities.org/id/london-borough-council/sutton,London Borough of Sutton,19/10/2018,1262892,64.99 , WAYFAIR #2304081144,64.99 - F106 0304 9999 - LCT PURCHASE OF BED WAYFAIR.PN,Peoples Services Directorate,Personal Requisites,F106,
http://opendatacommunities.org/id/london-borough-council/sutton,London Borough of Sutton,31/05/2018,1262973,17.71 , WWW.SECURE-PAYMENT-SER,KB PRISON CALLS,Peoples Services Directorate,Personal Requisites,F106,
http://opendatacommunities.org/id/london-borough-council/sutton,London Borough of Sutton,08/06/2018,1262973,43.25 , WWW.SECURE-PAYMENT-SER,KB PRISON MONEY,Peoples Services Directorate,Personal Requisites,F106,
http://opendatacommunities.org/id/london-borough-council/sutton,London Borough of Sutton,13/06/2018,1262973,60.00 , PRIMARK,KB PRISON CLOTHES,Peoples Services Directorate,Personal Requisites,F106,
http://opendatacommunities.org/id/london-borough-council/sutton,London Borough of Sutton,13/06/2018,1262973,13.31 , COOPER & CO,KB PRISON ITEMS,Peoples Services Directorate,Personal Requisites,F106,
http://opendatacommunities.org/id/london-borough-council/sutton,London Borough of Sutton,07/06/2018,1262973,27.58 , SAINSBURYS 2331,BABY ITEMS FOR LW EARLY ARRIVAL,Peoples Services Directorate,Personal Requisites,F106,
http://opendatacommunities.org/id/london-borough-council/sutton,London Borough of Sutton,25/06/2018,1262973,80.50 , HM PASSPORT OFFICE,PASSPORT,Peoples Services Directorate,Personal Requisites,F106,
http://opendatacommunities.org/id/london-borough-council/sutton,London Borough of Sutton,25/06/2018,1262973,15.98 , OFFICIALRECORDCOUK,PASSPORT,Peoples Services Directorate,Personal Requisites,F106,
http://opendatacommunities.org/id/london-borough-council/sutton,London Borough of Sutton,05/06/2018,1262973,29.52 , WWW.ARGOS.CO.UK,35.42 - F106 0304 9999 - ARGOS SETTING UP ITEMS,Peoples Services Directorate,Personal Requisites,F106,
http://opendatacommunities.org/id/london-borough-council/sutton,London Borough of Sutton,05/06/2018,1262973,53.32 , WWW.ARGOS.CO.UK,63.98 ARGOS F106 0304 9999.PDF,Peoples Services Directorate,Personal Requisites,F106,
http://opendatacommunities.org/id/london-borough-council/sutton,London Borough of Sutton,24/10/2018,1262892,17.83 , WWW.SECURE-PAYMENT-SER,DN PRISON MONEY,Peoples Services Directorate,Personal Requisites,F106,
http://opendatacommunities.org/id/london-borough-council/sutton,London Borough of Sutton,22/10/2018,1262892,8.98 , KFC WALLINGTON,RA ACTIVITY,Peoples Services Directorate,Personal Requisites,F106,
http://opendatacommunities.org/id/london-borough-council/sutton,London Borough of Sutton,19/10/2018,1262892,17.83 , WWW.SECURE-PAYMENT-SER,DN MONEY IN PRISON,Peoples Services Directorate,Personal Requisites,F106,
http://opendatacommunities.org/id/london-borough-council/sutton,London Borough of Sutton,17/10/2018,1262892,9.42 , NEW SOUTHERN RAILW,KB TRAVEL TO VISIT,Peoples Services Directorate,Personal Requisites,F106,
http://opendatacommunities.org/id/london-borough-council/sutton,London Borough of Sutton,17/10/2018,1262892,5.58 , DIGBY'S,KB ACTIVITY,Peoples Services Directorate,Personal Requisites,F106,
http://opendatacommunities.org/id/london-borough-council/sutton,London Borough of Sutton,27/04/2018,1262970,136.93 , ACCESS SELF STORAG,STORAGE FOR CLIENT IN THE LCT TEAM,Peoples Services Directorate,Offsite Storage,F231,
http://opendatacommunities.org/id/london-borough-council/sutton,London Borough of Sutton,17/10/2018,1262892,60.00 , MARSTON (HOLDINGS) LIM,COURT FINE,Peoples Services Directorate,Fees - Other,F299,
http://opendatacommunities.org/id/london-borough-council/sutton,London Borough of Sutton,15/10/2018,1262892,100.00 , MARSTON (HOLDINGS) LIM,COURT FINE,Peoples Services Directorate,Fees - Other,F299,
http://opendatacommunities.org/id/london-borough-council/sutton,London Borough of Sutton,12/06/2018,1262973,9.25 , GRO HM PASSPORT OFFICE,BIRTH CERT PURCHASE,Peoples Services Directorate,Accommodation - Bed and Breakfast,H202,
http://opendatacommunities.org/id/london-borough-council/sutton,London Borough of Sutton,24/10/2018,1262892,344.00 , PREMIER INN,344.00 - H202 .0304 9999 - PREMIER INN MIDDLESBOROUGH.PNG,Peoples Services Directorate,Accommodation - Bed and Breakfast,H202,
http://opendatacommunities.org/id/london-borough-council/sutton,London Borough of Sutton,28/04/2018,1262970,(8.99), PREMIER INN,BREAKFAST REFUND,Peoples Services Directorate,Accommodation - Bed and Breakfast,H202,
http://opendatacommunities.org/id/london-borough-council/sutton,London Borough of Sutton,31/05/2018,1262973,64.58 , SWAN,"SWAN HOTEL, ALTON",Peoples Services Directorate,Accommodation - Bed and Breakfast,H202,
http://opendatacommunities.org/id/london-borough-council/sutton,London Borough of Sutton,23/10/2018,1262892,9.75 , NEW SOUTHERN RAILW,DN PRISON VISIT TRAVEL,Peoples Services Directorate,C.C.A Travel & Subsistance,H212,
http://opendatacommunities.org/id/london-borough-council/sutton,London Borough of Sutton,02/05/2018,1262970,100.00 , WM MORRISONS,FOOD VOUCHERS,Peoples Services Directorate,C.C.A Food & Clothing,H213,
http://opendatacommunities.org/id/london-borough-council/sutton,London Borough of Sutton,02/10/2018,1262892,(120.00), SUTTON COLLEGE,120.00 - H301 0304 9999 - SUTTON COLLEGE - ASSISTANCE FOR YP.PDF,Peoples Services Directorate,Client Care/Assistance,H301,
http://opendatacommunities.org/id/london-borough-council/sutton,London Borough of Sutton,10/05/2018,1262970,108.93 , WWW.ARGOS.CO.UK,ARGOS PURCHASES FOR SET UP OF YOUNG PERSON,Peoples Services Directorate,Set Up Costs - Children Leaving Care,H336,
http://opendatacommunities.org/id/london-borough-council/sutton,London Borough of Sutton,15/05/2018,1262970,549.00 , BENSONSFORBEDS.CO.UK,BEDS FOR YOUNG PERSON FOR SET UP OF FLAT,Peoples Services Directorate,Set Up Costs - Children Leaving Care,H336,
http://opendatacommunities.org/id/london-borough-council/sutton,London Borough of Sutton,17/10/2018,1262892,643.33 , SUTTON APPLIANCES,EURONICS - PAYMENT WHITE GOODS,Peoples Services Directorate,Set Up Costs - Children Leaving Care,H336,
http://opendatacommunities.org/id/london-borough-council/sutton,London Borough of Sutton,15/10/2018,1262892,241.65 , ARGOS RETAIL GROUP,ARGOS - ORDER FOR LCT SETUP YOUNG PERSON,Peoples Services Directorate,Set Up Costs - Children Leaving Care,H336,
http://opendatacommunities.org/id/london-borough-council/sutton,London Borough of Sutton,29/05/2018,1262973,679.97 , CURRYS ONLINE,T EQUTMENT PURCHASED FOR A YP N LCT TEAM.,Peoples Services Directorate,Set Up Costs - Children Leaving Care,H336,
http://opendatacommunities.org/id/london-borough-council/sutton,London Borough of Sutton,11/05/2018,1262970,152.92 , WWW.ARGOS.CO.UK,THIS IS PURCHASE FOR SET UP COSTS. THE PURCHASE WAS TAKEN IN TWO PARTS,Peoples Services Directorate,Set Up Costs - Children Leaving Care,H336,
http://opendatacommunities.org/id/london-borough-council/sutton,London Borough of Sutton,11/05/2018,1262970,19.99 , WWW.ARGOS.CO.UK,ARGOS DELIVERY CHARGE FOR SET UP COSTS FOR A YOUNG PERSON,Peoples Services Directorate,Set Up Costs - Children Leaving Care,H336,
http://opendatacommunities.org/id/london-borough-council/sutton,London Borough of Sutton,30/05/2018,1262973,125.42 , TVLICENSING.CO.UK,MBA SETTING UP,Peoples Services Directorate,Set Up Costs - Children Leaving Care,H336,
http://opendatacommunities.org/id/london-borough-council/sutton,London Borough of Sutton,30/05/2018,1262973,674.97 , SUTTON APPLIANCES,DC SETTING UP,Peoples Services Directorate,Set Up Costs - Children Leaving Care,H336,
http://opendatacommunities.org/id/london-borough-council/sutton,London Borough of Sutton,12/06/2018,1262973,125.42 , TVLICENSING.CO.UK,KB TV LICENSE,Peoples Services Directorate,Set Up Costs - Children Leaving Care,H336,
http://opendatacommunities.org/id/london-borough-council/sutton,London Borough of Sutton,18/06/2018,1262973,75.00 , BRITISH HEART FOUNDATI,LM SETTING UP,Peoples Services Directorate,Set Up Costs - Children Leaving Care,H336,
http://opendatacommunities.org/id/london-borough-council/sutton,London Borough of Sutton,13/06/2018,1262973,150.50 , TVLICENSING.CO.UK,TV LICENSE - L COLE,Peoples Services Directorate,Set Up Costs - Children Leaving Care,H336,
http://opendatacommunities.org/id/london-borough-council/sutton,London Borough of Sutton,24/10/2018,1262892,125.42 , TVLICENSING.CO.UK,IF TV LICENSE,Peoples Services Directorate,Set Up Costs - Children Leaving Care,H336,
http://opendatacommunities.org/id/london-borough-council/sutton,London Borough of Sutton,05/10/2018,1262892,659.17 , SUTTON APPLIANCES,JC SETTING UP,Peoples Services Directorate,Set Up Costs - Children Leaving Care,H336,
http://opendatacommunities.org/id/london-borough-council/sutton,London Borough of Sutton,04/10/2018,1262892,125.42 , TVLICENSING.CO.UK,TV LICENSE JC,Peoples Services Directorate,Set Up Costs - Children Leaving Care,H336,
http://opendatacommunities.org/id/london-borough-council/sutton,London Borough of Sutton,27/09/2018,1262892,125.42 , TVLICENSING.CO.UK,TV LICENSE KG,Peoples Services Directorate,Set Up Costs - Children Leaving Care,H336,
http://opendatacommunities.org/id/london-borough-council/sutton,London Borough of Sutton,16/10/2018,1262892,30.00 , LBSUTTON,30.00 - F106 0305 9999 - SUTTON REGISTER OFFICE.PNG,Peoples Services Directorate,Personal Requisites,F106,
http://opendatacommunities.org/id/london-borough-council/sutton,London Borough of Sutton,18/10/2018,1262892,88.75 , TRAVELODGE,H202 0305 9999 - TRAVELODGE HERNE BAY,Peoples Services Directorate,Accommodation - Bed and Breakfast,H202,
http://opendatacommunities.org/id/london-borough-council/sutton,London Borough of Sutton,13/06/2018,1262973,141.66 , ARGOS LTD,MA SETTING UP,Peoples Services Directorate,Set Up Costs - Children Leaving Care,H336,
http://opendatacommunities.org/id/london-borough-council/sutton,London Borough of Sutton,15/06/2018,1262973,125.42 , TVLICENSING.CO.UK,MS TV LICENSE,Peoples Services Directorate,Set Up Costs - Children Leaving Care,H336,
http://opendatacommunities.org/id/london-borough-council/sutton,London Borough of Sutton,28/09/2018,1262892,125.42 , TVLICENSING.CO.UK,TV LICENSE SN,Peoples Services Directorate,Set Up Costs - Children Leaving Care,H336,
http://opendatacommunities.org/id/london-borough-council/sutton,London Borough of Sutton,04/06/2018,1262973,293.33 , TRAVELODGE,TRAVELODGE FOR CLIENT,Peoples Services Directorate,Accommodation - Bed and Breakfast,H202,
http://opendatacommunities.org/id/london-borough-council/sutton,London Borough of Sutton,27/09/2018,1262892,527.92 , TRAVELODGE,TRAVELODGE SOUTH CROYDON,Peoples Services Directorate,Accommodation - Bed and Breakfast,H202,
http://opendatacommunities.org/id/london-borough-council/sutton,London Borough of Sutton,23/10/2018,1262892,440.83 , TRAVELODGE,529.00 - H202 0310 9999 - SOUTH CROYDON TRAVELODGE.PNG,Peoples Services Directorate,Accommodation - Bed and Breakfast,H202,
http://opendatacommunities.org/id/london-borough-council/sutton,London Borough of Sutton,27/04/2018,1262970,247.50 , TRAVELODGE,CLIENT ACCOMADATION,Peoples Services Directorate,Accommodation - Bed and Breakfast,H202,
http://opendatacommunities.org/id/london-borough-council/sutton,London Borough of Sutton,22/10/2018,1262892,632.08 , TRAVELODGE,758.50 - H202 0310 9999 - LONDON WIMBLEDON MORDEN TRAVELODGE.PNG,Peoples Services Directorate,Accommodation - Bed and Breakfast,H202,
http://opendatacommunities.org/id/london-borough-council/sutton,London Borough of Sutton,16/10/2018,1262892,473.75 , TRAVELODGE,568.50 -H202 0310 9999 - TRAVELODGE SOUTH CROYDON.PNG,Peoples Services Directorate,Accommodation - Bed and Breakfast,H202,
http://opendatacommunities.org/id/london-borough-council/sutton,London Borough of Sutton,12/10/2018,1262892,628.50 , TRAVELODGE,628.50 - H211 0310 9999 - LONDON WIMBLEDON TRAVELODGE.PNG,Peoples Services Directorate,Accommodation - Bed and Breakfast,H202,
http://opendatacommunities.org/id/london-borough-council/sutton,London Borough of Sutton,01/10/2018,1262892,469.17 , TRAVELODGE,568.50 -H202 0310 9999 - TRAVELODGE SOUTH CROYDON.PNG,Peoples Services Directorate,Accommodation - Bed and Breakfast,H202,
http://opendatacommunities.org/id/london-borough-council/sutton,London Borough of Sutton,08/10/2018,1262892,486.25 , TRAVELODGE,583.50 - H210 0310 9999 - SOOUTH CROYDON TRAVELODGE.PNG,Peoples Services Directorate,Payments Under the Child Care Act 1980,H210,
http://opendatacommunities.org/id/london-borough-council/sutton,London Borough of Sutton,04/10/2018,1262892,540.71 , TRAVELODGE,TRAVELODGE SOUTH CROYDON,Peoples Services Directorate,C.C.A Rent & Utilities,H211,
http://opendatacommunities.org/id/london-borough-council/sutton,London Borough of Sutton,08/10/2018,1262892,586.25 , TRAVELODGE,703..50 - H211 0310 0601 - LONDON WIMBLEDON TRAVELODGE.PNG,Peoples Services Directorate,C.C.A Rent & Utilities,H211,
http://opendatacommunities.org/id/london-borough-council/sutton,London Borough of Sutton,16/10/2018,1262892,202.45 , WWW.ARGOS.CO.UK,ARGOS - SOFA FOR ITEM SEC 17,Peoples Services Directorate,Client Care/Assistance,H301,
http://opendatacommunities.org/id/london-borough-council/sutton,London Borough of Sutton,24/10/2018,1262892,14.90 , WWW.WIGHTLINK.CO.UK,14.90 - A530 0311 9999 - WIGHTLINK FERRIES.PNG,Peoples Services Directorate,Travelling and Subsistence Allowances,A530,
http://opendatacommunities.org/id/london-borough-council/sutton,London Borough of Sutton,29/04/2018,1262970,20.00 , OYSTER BUS AUTOTOP,OYSTER CARD TOP UP LAC TEAM,Peoples Services Directorate,Travelling and Subsistence Allowances,A530,
http://opendatacommunities.org/id/london-borough-council/sutton,London Borough of Sutton,18/06/2018,1262973,20.00 , OYSTER AUTOTOPUP,OYSTER TOP UP,Peoples Services Directorate,Travelling and Subsistence Allowances,A530,
http://opendatacommunities.org/id/london-borough-council/sutton,London Borough of Sutton,02/05/2018,1262970,20.00 , OYSTER AUTOTOPUP,OYSTER TOP UP,Peoples Services Directorate,Travelling and Subsistence Allowances,A530,
http://opendatacommunities.org/id/london-borough-council/sutton,London Borough of Sutton,03/05/2018,1262970,20.00 , OYSTER AUTOTOPUP,OYSTER TOP UP FOR THE LAC TEAM,Peoples Services Directorate,Travelling and Subsistence Allowances,A530,
http://opendatacommunities.org/id/london-borough-council/sutton,London Borough of Sutton,10/05/2018,1262970,20.00 , OYSTER AUTOSETTLE,OYSTER AUTO TOP UP,Peoples Services Directorate,Travelling and Subsistence Allowances,A530,
http://opendatacommunities.org/id/london-borough-council/sutton,London Borough of Sutton,10/05/2018,1262970,20.00 , OYSTER AUTOTOPUP,OYSTER TOP UP,Peoples Services Directorate,Travelling and Subsistence Allowances,A530,
http://opendatacommunities.org/id/london-borough-council/sutton,London Borough of Sutton,17/10/2018,1262892,20.00 , OYSTER AUTO-TOP UP,20.00 AUTO TOP UP - A530 0311 9999 -.PDF,Peoples Services Directorate,Travelling and Subsistence Allowances,A530,
http://opendatacommunities.org/id/london-borough-council/sutton,London Borough of Sutton,08/05/2018,1262970,40.00 , OYSTER AUTOSETTLE,OYSTER CARD TOP UP LAC TEAM,Peoples Services Directorate,Travelling and Subsistence Allowances,A530,
http://opendatacommunities.org/id/london-borough-council/sutton,London Borough of Sutton,08/05/2018,1262970,20.00 , OYSTER AUTOSETTLE,OYSTER TOP UP FOR LAC TEAM,Peoples Services Directorate,Travelling and Subsistence Allowances,A530,
http://opendatacommunities.org/id/london-borough-council/sutton,London Borough of Sutton,08/05/2018,1262970,20.00 , OYSTER AUTOSETTLE,OYSTER TOP UP,Peoples Services Directorate,Travelling and Subsistence Allowances,A530,
http://opendatacommunities.org/id/london-borough-council/sutton,London Borough of Sutton,08/05/2018,1262970,37.00 , GRO HM PASSPORT OFFICE,BIRTH CERT PURCHASED FOR LAC TEAM FOR PASASPORT APPLICATION,Peoples Services Directorate,Travelling and Subsistence Allowances,A530,
http://opendatacommunities.org/id/london-borough-council/sutton,London Borough of Sutton,08/05/2018,1262970,20.00 , OYSTER BUS AUTOSET,OYSTER TOP UP FOR LAC TEAM,Peoples Services Directorate,Travelling and Subsistence Allowances,A530,
http://opendatacommunities.org/id/london-borough-council/sutton,London Borough of Sutton,08/05/2018,1262970,20.00 , OYSTER BUS AUTOSET,OYSTER TOP UP,Peoples Services Directorate,Travelling and Subsistence Allowances,A530,
http://opendatacommunities.org/id/london-borough-council/sutton,London Borough of Sutton,08/05/2018,1262970,20.00 , OYSTER AUTOSETTLE,OYSTER  CARD SETTLED WITH AUTO TOP UP,Peoples Services Directorate,Travelling and Subsistence Allowances,A530,
http://opendatacommunities.org/id/london-borough-council/sutton,London Borough of Sutton,20/06/2018,1262973,20.00 , OYSTER BUS AUTOTOP,OYSTER TOP UP,Peoples Services Directorate,Travelling and Subsistence Allowances,A530,
http://opendatacommunities.org/id/london-borough-council/sutton,London Borough of Sutton,23/05/2018,1262970,20.00 , OYSTER AUTOTOPUP,OYSTER TOP UP,Peoples Services Directorate,Travelling and Subsistence Allowances,A530,
http://opendatacommunities.org/id/london-borough-council/sutton,London Borough of Sutton,23/05/2018,1262970,10.00 , OYSTER RENEW WEB,OYSTER TOP UP,Peoples Services Directorate,Travelling and Subsistence Allowances,A530,
http://opendatacommunities.org/id/london-borough-council/sutton,London Borough of Sutton,24/05/2018,1262970,20.00 , OYSTER BUS AUTOTOP,OYSTER TOP UP,Peoples Services Directorate,Travelling and Subsistence Allowances,A530,
http://opendatacommunities.org/id/london-borough-council/sutton,London Borough of Sutton,24/05/2018,1262970,20.00 , OYSTER AUTOSETTLE,OYSTER TOP FOR LAC TEAM.,Peoples Services Directorate,Travelling and Subsistence Allowances,A530,
http://opendatacommunities.org/id/london-borough-council/sutton,London Borough of Sutton,25/05/2018,1262970,20.00 , OYSTER AUTOTOPUP,OYSTER TOP UP FOR LAC TEAM.,Peoples Services Directorate,Travelling and Subsistence Allowances,A530,
http://opendatacommunities.org/id/london-borough-council/sutton,London Borough of Sutton,26/05/2018,1262970,20.00 , OYSTER AUTOTOPUP,OYSTER TOP UP,Peoples Services Directorate,Travelling and Subsistence Allowances,A530,
http://opendatacommunities.org/id/london-borough-council/sutton,London Borough of Sutton,13/06/2018,1262973,20.00 , OYSTER BUS AUTOTOP,OYSTER CARD TOP UP,Peoples Services Directorate,Travelling and Subsistence Allowances,A530,
http://opendatacommunities.org/id/london-borough-council/sutton,London Borough of Sutton,14/06/2018,1262973,20.00 , OYSTER BUS AUTOTOP,OYSTER CARDS,Peoples Services Directorate,Travelling and Subsistence Allowances,A530,
http://opendatacommunities.org/id/london-borough-council/sutton,London Borough of Sutton,15/06/2018,1262973,20.00 , OYSTER BUS AUTOTOP,OYSTER TOP UP,Peoples Services Directorate,Travelling and Subsistence Allowances,A530,
http://opendatacommunities.org/id/london-borough-council/sutton,London Borough of Sutton,30/05/2018,1262973,(10.00), OYSTER RENEW WEB,10.00 REFUND OF OYSTER  FOR LAC TEAM,Peoples Services Directorate,Travelling and Subsistence Allowances,A530,
http://opendatacommunities.org/id/london-borough-council/sutton,London Borough of Sutton,04/06/2018,1262973,12.30 , WWW.WIGHTLINK.CO.UK,WIGHLINK TICKETS,Peoples Services Directorate,Travelling and Subsistence Allowances,A530,
http://opendatacommunities.org/id/london-borough-council/sutton,London Borough of Sutton,05/06/2018,1262973,20.00 , OYSTER BUS AUTOTOP,OYSTER CARD AUTO TOP UP,Peoples Services Directorate,Travelling and Subsistence Allowances,A530,
http://opendatacommunities.org/id/london-borough-council/sutton,London Borough of Sutton,06/06/2018,1262973,20.00 , OYSTER BUS AUTOTOP,OYSTER TOP UP,Peoples Services Directorate,Travelling and Subsistence Allowances,A530,
http://opendatacommunities.org/id/london-borough-council/sutton,London Borough of Sutton,09/06/2018,1262973,20.00 , OYSTER AUTOTOPUP,OYSTER TOP UP,Peoples Services Directorate,Travelling and Subsistence Allowances,A530,
http://opendatacommunities.org/id/london-borough-council/sutton,London Borough of Sutton,09/06/2018,1262973,20.00 , OYSTER BUS AUTOTOP,OYSTER TOP UP,Peoples Services Directorate,Travelling and Subsistence Allowances,A530,
http://opendatacommunities.org/id/london-borough-council/sutton,London Borough of Sutton,24/06/2018,1262973,20.00 , OYSTER BUS AUTOTOP,OYSTER TOP UP,Peoples Services Directorate,Travelling and Subsistence Allowances,A530,
http://opendatacommunities.org/id/london-borough-council/sutton,London Borough of Sutton,09/10/2018,1262892,12.30 , WWW.WIGHTLINK.CO.UK,12.30 - A530 0311 9999 - WIGTLINK FOR CHARLES F.PNG,Peoples Services Directorate,Travelling and Subsistence Allowances,A530,
http://opendatacommunities.org/id/london-borough-council/sutton,London Borough of Sutton,28/09/2018,1262892,20.00 , OYSTER AUTO-TOP UP,OYSTER AUTO TOP UP,Peoples Services Directorate,Travelling and Subsistence Allowances,A530,
http://opendatacommunities.org/id/london-borough-council/sutton,London Borough of Sutton,28/09/2018,1262892,20.00 , OYSTER AUTO-TOP UP,OYSTER AUTO TOP UP,Peoples Services Directorate,Travelling and Subsistence Allowances,A530,
http://opendatacommunities.org/id/london-borough-council/sutton,London Borough of Sutton,29/09/2018,1262892,20.00 , OYSTER AUTO-TOP UP,OYSTER AUTO TOP UP,Peoples Services Directorate,Travelling and Subsistence Allowances,A530,
http://opendatacommunities.org/id/london-borough-council/sutton,London Borough of Sutton,29/09/2018,1262892,20.00 , OYSTER AUTO-TOP UP,OYSTER AUTO TOP UP,Peoples Services Directorate,Travelling and Subsistence Allowances,A530,
http://opendatacommunities.org/id/london-borough-council/sutton,London Borough of Sutton,30/09/2018,1262892,20.00 , OYSTER AUTO-TOP UP,OYSTER AUTO TOP UP,Peoples Services Directorate,Travelling and Subsistence Allowances,A530,
http://opendatacommunities.org/id/london-borough-council/sutton,London Borough of Sutton,26/09/2018,1262892,20.00 , OYSTER AUTO-TOP UP,OYSTER AUTO TOP UP,Peoples Services Directorate,Travelling and Subsistence Allowances,A530,
http://opendatacommunities.org/id/london-borough-council/sutton,London Borough of Sutton,26/09/2018,1262892,20.00 , OYSTER AUTO-TOP UP,OYSTER AUTO TOP UP,Peoples Services Directorate,Travelling and Subsistence Allowances,A530,
http://opendatacommunities.org/id/london-borough-council/sutton,London Borough of Sutton,28/09/2018,1262892,20.00 , OYSTER AUTO-TOP UP,OYSTER AUTO TOP UP,Peoples Services Directorate,Recruitment Expenses,A531,
http://opendatacommunities.org/id/london-borough-council/sutton,London Borough of Sutton,15/05/2018,1262970,82.47 , SAM INTERNATIONAL,WHITEBOARDS FOR LAC TEAM,Peoples Services Directorate,Other Equipment - Purchase,F015,
http://opendatacommunities.org/id/london-borough-council/sutton,London Borough of Sutton,15/05/2018,1262970,20.00 , HOUNSLOW.GOV.UK,BIRTH CERTS BOUGHT FOR LAC TEAM FOR PASSPORT APPLICATION,Peoples Services Directorate,Personal Requisites,F106,
http://opendatacommunities.org/id/london-borough-council/sutton,London Borough of Sutton,16/05/2018,1262970,27.85 , BCC REGISTER OFFIC,BIRTH CERTS PURCHASED FOR LAC TEAM,Peoples Services Directorate,Personal Requisites,F106,
http://opendatacommunities.org/id/london-borough-council/sutton,London Borough of Sutton,17/05/2018,1262970,(20.00), CASHIERS & AUTOMAT,REFUND OF BIRTH CERT,Peoples Services Directorate,Personal Requisites,F106,
http://opendatacommunities.org/id/london-borough-council/sutton,London Borough of Sutton,21/05/2018,1262970,(11.85), BCC REGISTER OFFIC,REFUND OF BIRTH CERT,Peoples Services Directorate,Personal Requisites,F106,
http://opendatacommunities.org/id/london-borough-council/sutton,London Borough of Sutton,30/05/2018,1262973,127.00 , HM PASSPORT,PASSPORT APPOINTMENT MADE FOR SW IN THE LAC TEAM.,Peoples Services Directorate,Personal Requisites,F106,
http://opendatacommunities.org/id/london-borough-council/sutton,London Borough of Sutton,19/09/2018,1262892,(9.25), GRO HM PASSPORT OFFICE,GR0 REFUND,Peoples Services Directorate,Personal Requisites,F106,
http://opendatacommunities.org/id/london-borough-council/sutton,London Borough of Sutton,12/06/2018,1262973,20.00 , LBSUTTON,BIRTH CERTIFICATE,Peoples Services Directorate,Personal Requisites,F106,
http://opendatacommunities.org/id/london-borough-council/sutton,London Borough of Sutton,12/06/2018,1262973,18.50 , GRO HM PASSPORT OFFICE,BIRTH CERTIFICATE,Peoples Services Directorate,Personal Requisites,F106,
http://opendatacommunities.org/id/london-borough-council/sutton,London Borough of Sutton,04/06/2018,1262973,20.00 , LBSUTTON,BIRTH CERTS,Peoples Services Directorate,Personal Requisites,F106,
http://opendatacommunities.org/id/london-borough-council/sutton,London Borough of Sutton,04/06/2018,1262973,20.00 , LBSUTTON,BITH CERTS,Peoples Services Directorate,Personal Requisites,F106,
http://opendatacommunities.org/id/london-borough-council/sutton,London Borough of Sutton,04/06/2018,1262973,43.00 , HAMPSHIRE COUNTY COUNC,BIRTH CERTS,Peoples Services Directorate,Personal Requisites,F106,
http://opendatacommunities.org/id/london-borough-council/sutton,London Borough of Sutton,25/10/2018,1262892,138.60 , WWW.OXYGENFREEJUMP,138.60 - F106 0311 9999 - OXYGEN CROYDON.PNG,Peoples Services Directorate,Personal Requisites,F106,
http://opendatacommunities.org/id/london-borough-council/sutton,London Borough of Sutton,25/10/2018,1262892,90.00 , BIRMINGHAM,90.00 - F106 0311 9999 - SEA LIFE BIRMINGHAM.PNG,Peoples Services Directorate,Personal Requisites,F106,
http://opendatacommunities.org/id/london-borough-council/sutton,London Borough of Sutton,24/10/2018,1262892,127.00 , HM PASSPORT,127.00 F106 0311 9999 - FAST TRACK PASSPORT OFFICE APPOINTMENT.PN,Peoples Services Directorate,Personal Requisites,F106,
http://opendatacommunities.org/id/london-borough-council/sutton,London Borough of Sutton,12/06/2018,1262973,27.85 , BCC REGISTER OFFIC,BIRTH CERTS,Peoples Services Directorate,Personal Requisites,F106,
http://opendatacommunities.org/id/london-borough-council/sutton,London Borough of Sutton,29/05/2018,1262973,20.00 , LBSUTTON,PURCHASE OF X2 BIRTHCERTS,Peoples Services Directorate,Personal Requisites,F106,
http://opendatacommunities.org/id/london-borough-council/sutton,London Borough of Sutton,30/05/2018,1262973,127.00 , HM PASSPORT, PASSPORT APPOINTMENT MADE FOR A SW IN THE  LAC TEAM.,Peoples Services Directorate,Personal Requisites,F106,
http://opendatacommunities.org/id/london-borough-council/sutton,London Borough of Sutton,19/10/2018,1262892,(75.95), GRO HM PASSPORT OFFICE,75.95 - F106 0311 9999 - REFUNBD.PNG,Peoples Services Directorate,Personal Requisites,F106,
http://opendatacommunities.org/id/london-borough-council/sutton,London Borough of Sutton,22/10/2018,1262892,34.71 , AMAZON.CO.UK MT8904054,35.00 - F106 0311 9999 - CRAZY GOLF.PNG,Peoples Services Directorate,Personal Requisites,F106,
http://opendatacommunities.org/id/london-borough-council/sutton,London Borough of Sutton,19/10/2018,1262892,19.80 , WWW.WIGHTLINK.CO.UK,19.80 - F106 0311 9999 - WIGHTLINK.PNG,Peoples Services Directorate,Personal Requisites,F106,
http://opendatacommunities.org/id/london-borough-council/sutton,London Borough of Sutton,19/10/2018,1262892,75.95 , GRO HM PASSPORT OFFICE,75.95 - F106 0311 9999 - REFUNBD.PNG,Peoples Services Directorate,Personal Requisites,F106,
http://opendatacommunities.org/id/london-borough-council/sutton,London Borough of Sutton,16/10/2018,1262892,10.00 , LBSUTTON,10.00 - F106 0311 9999 - BIRTH CERT,Peoples Services Directorate,Personal Requisites,F106,
http://opendatacommunities.org/id/london-borough-council/sutton,London Borough of Sutton,12/10/2018,1262892,10.00 , LBSUTTON MOTO,10.00 - F106 0311 9999 - BIRTH CERT,Peoples Services Directorate,Personal Requisites,F106,
http://opendatacommunities.org/id/london-borough-council/sutton,London Borough of Sutton,05/06/2018,1262973,155.42 , WARWICK CASTLE,\MERLIN PASS FOR LAC CHILD,Peoples Services Directorate,Personal Requisites,F106,
http://opendatacommunities.org/id/london-borough-council/sutton,London Borough of Sutton,06/06/2018,1262973,(149.17), CHESSINGTON WORLD,REFUND FROM CHESSINGTON - ORIGINAL RECEIPT ATTACHED AS REFUND RECEIPT NOT SUPPLIED,Peoples Services Directorate,Personal Requisites,F106,
http://opendatacommunities.org/id/london-borough-council/sutton,London Borough of Sutton,17/05/2018,1262973,(18.50), GRO HM PASSPORT OFFICE,REFUND FOR BIRTH CERTIFICATE,Peoples Services Directorate,Personal Requisites,F106,
http://opendatacommunities.org/id/london-borough-council/sutton,London Borough of Sutton,30/05/2018,1262973,(46.80), GRO HM PASSPORT OFFICE,REFUND FOR BIRTH CERTIFICATE,Peoples Services Directorate,Personal Requisites,F106,
http://opendatacommunities.org/id/london-borough-council/sutton,London Borough of Sutton,30/05/2018,1262973,46.80 , GRO HM PASSPORT OFFICE,BIRTH CERTIFICATE,Peoples Services Directorate,Personal Requisites,F106,
http://opendatacommunities.org/id/london-borough-council/sutton,London Borough of Sutton,31/05/2018,1262973,46.87 , PAYPAL  PARTYMANCOM,56.25 - F106 0311 9999 - MARSH FARM SUPERHERO WEEK.PDF,Peoples Services Directorate,Personal Requisites,F106,
http://opendatacommunities.org/id/london-borough-council/sutton,London Borough of Sutton,07/06/2018,1262973,14.87 , BCC REGISTER OFFIC,17.85 - F106 0311 9999 - BIRTH CERTIFICATE.PDF,Peoples Services Directorate,Personal Requisites,F106,
http://opendatacommunities.org/id/london-borough-council/sutton,London Borough of Sutton,11/06/2018,1262973,105.83 , HM PASSPORT,127.00 -F106 0311 9999 - GENERAL PASSPORT OFFICE APPOINTMENT -,Peoples Services Directorate,Personal Requisites,F106,
http://opendatacommunities.org/id/london-borough-council/sutton,London Borough of Sutton,09/10/2018,1262892,(46.80), GRO HM PASSPORT OFFICE,61.80 - F106 0311 9999 - GRO REFUND.PNG,Peoples Services Directorate,Personal Requisites,F106,
http://opendatacommunities.org/id/london-borough-council/sutton,London Borough of Sutton,26/09/2018,1262892,94.75 , POST OFFICE COUNTER,PASSPORT APPLICATION,Peoples Services Directorate,Personal Requisites,F106,
http://opendatacommunities.org/id/london-borough-council/sutton,London Borough of Sutton,26/09/2018,1262892,68.25 , POST OFFICE COUNTER,PASSPORT APPLICATION,Peoples Services Directorate,Personal Requisites,F106,
http://opendatacommunities.org/id/london-borough-council/sutton,London Borough of Sutton,26/09/2018,1262892,68.25 , POST OFFICE COUNTER,PASSPORT APPLICATION,Peoples Services Directorate,Personal Requisites,F106,
http://opendatacommunities.org/id/london-borough-council/sutton,London Borough of Sutton,22/10/2018,1262892,35.00 , ADVENTURE LEISURE LTD,35.00 - F106 0311 9999 - CRAZY GOLF.PNG,Peoples Services Directorate,Provisions - General,F150,
http://opendatacommunities.org/id/london-borough-council/sutton,London Borough of Sutton,17/10/2018,1262892,100.08 , TRAVELODGE,TRAVELODGE - HUNTINGFORD,Peoples Services Directorate,Accommodation - Bed and Breakfast,H202,
http://opendatacommunities.org/id/london-borough-council/sutton,London Borough of Sutton,27/04/2018,1262970,209.98 , PREMIER INN,CS ACCOMODATION,Peoples Services Directorate,Accommodation - Bed and Breakfast,H202,
http://opendatacommunities.org/id/london-borough-council/sutton,London Borough of Sutton,01/10/2018,1262892,507.08 , TRAVELODGE,608.50 - H202 0310 9999 - TRAVELODGE,Peoples Services Directorate,Accommodation - Bed and Breakfast,H202,
http://opendatacommunities.org/id/london-borough-council/sutton,London Borough of Sutton,16/06/2018,1262973,200.00 , GREYHOUND,GREYHOUNDS HOTEL BOOKING,Peoples Services Directorate,C.C.A Rent & Utilities,H211,
http://opendatacommunities.org/id/london-borough-council/sutton,London Borough of Sutton,06/06/2018,1262973,128.90 , TRAINLINE.COM LTD,TRAINLINE CARD FOR LAC CHILD,Peoples Services Directorate,C.C.A Travel & Subsistance,H212,
http://opendatacommunities.org/id/london-borough-council/sutton,London Borough of Sutton,15/05/2018,1262970,10.00 , OYSTER RENEW WEB,OYSTER TOP UP,Peoples Services Directorate,Travelling and Subsistence Allowances,A530,
http://opendatacommunities.org/id/london-borough-council/sutton,London Borough of Sutton,16/05/2018,1262970,20.00 , OYSTER BUS AUTOTOP,OYSTER TOP UP FOR FSCP/COURT,Peoples Services Directorate,Travelling and Subsistence Allowances,A530,
http://opendatacommunities.org/id/london-borough-council/sutton,London Borough of Sutton,19/05/2018,1262970,20.00 , OYSTER BUS AUTOTOP,OYSTER TOP UP,Peoples Services Directorate,Travelling and Subsistence Allowances,A530,
http://opendatacommunities.org/id/london-borough-council/sutton,London Borough of Sutton,22/05/2018,1262970,(10.00), OYSTER RENEW WEB,OYSTER  TO FOR FSCP/COURT,Peoples Services Directorate,Travelling and Subsistence Allowances,A530,
http://opendatacommunities.org/id/london-borough-council/sutton,London Borough of Sutton,23/05/2018,1262970,10.00 , OYSTER RENEW WEB,OYSTER TOP UP,Peoples Services Directorate,Travelling and Subsistence Allowances,A530,
http://opendatacommunities.org/id/london-borough-council/sutton,London Borough of Sutton,23/05/2018,1262970,10.00 , OYSTER RENEW WEB,OYSTER TOP UP,Peoples Services Directorate,Travelling and Subsistence Allowances,A530,
http://opendatacommunities.org/id/london-borough-council/sutton,London Borough of Sutton,23/05/2018,1262970,10.00 , OYSTER RENEW WEB,OYSTER TOP UP,Peoples Services Directorate,Travelling and Subsistence Allowances,A530,
http://opendatacommunities.org/id/london-borough-council/sutton,London Borough of Sutton,23/05/2018,1262970,10.00 , OYSTER RENEW WEB,OYSTER TOP UP,Peoples Services Directorate,Travelling and Subsistence Allowances,A530,
http://opendatacommunities.org/id/london-borough-council/sutton,London Borough of Sutton,24/05/2018,1262970,20.00 , OYSTER AUTOSETTLE,OYSTER TOP UP,Peoples Services Directorate,Travelling and Subsistence Allowances,A530,
http://opendatacommunities.org/id/london-borough-council/sutton,London Borough of Sutton,25/05/2018,1262970,20.00 , OYSTER AUTOTOPUP,OYSTER TOP UP,Peoples Services Directorate,Travelling and Subsistence Allowances,A530,
http://opendatacommunities.org/id/london-borough-council/sutton,London Borough of Sutton,26/05/2018,1262970,20.00 , OYSTER BUS AUTOTOP,OYSTER TOP UP,Peoples Services Directorate,Travelling and Subsistence Allowances,A530,
http://opendatacommunities.org/id/london-borough-council/sutton,London Borough of Sutton,27/05/2018,1262970,20.00 , OYSTER AUTOTOPUP,OYSTER TOP UP FOR THE COURT TEAM.,Peoples Services Directorate,Travelling and Subsistence Allowances,A530,
http://opendatacommunities.org/id/london-borough-council/sutton,London Borough of Sutton,17/06/2018,1262973,20.00 , OYSTER BUS AUTOTOP,OYSTER TOP UP,Peoples Services Directorate,Travelling and Subsistence Allowances,A530,
http://opendatacommunities.org/id/london-borough-council/sutton,London Borough of Sutton,31/05/2018,1262973,20.00 , OYSTER BUS AUTOTOP,OYSTER TOP UP,Peoples Services Directorate,Travelling and Subsistence Allowances,A530,
http://opendatacommunities.org/id/london-borough-council/sutton,London Borough of Sutton,01/06/2018,1262973,20.00 , OYSTER BUS AUTOTOP,OYSTER AUTO TOP UP,Peoples Services Directorate,Travelling and Subsistence Allowances,A530,
http://opendatacommunities.org/id/london-borough-council/sutton,London Borough of Sutton,01/06/2018,1262973,20.00 , OYSTER BUS AUTOTOP,OYSTER TOP UP AUTO TOP UP,Peoples Services Directorate,Travelling and Subsistence Allowances,A530,
http://opendatacommunities.org/id/london-borough-council/sutton,London Borough of Sutton,02/06/2018,1262973,20.00 , OYSTER BUS AUTOTOP,OYSTER TOP UP,Peoples Services Directorate,Travelling and Subsistence Allowances,A530,
http://opendatacommunities.org/id/london-borough-council/sutton,London Borough of Sutton,02/06/2018,1262973,20.00 , OYSTER AUTOTOPUP,OYSTRE TOP UP,Peoples Services Directorate,Travelling and Subsistence Allowances,A530,
http://opendatacommunities.org/id/london-borough-council/sutton,London Borough of Sutton,08/06/2018,1262973,20.00 , OYSTER BUS AUTOTOP,OYSTER TOP UP,Peoples Services Directorate,Travelling and Subsistence Allowances,A530,
http://opendatacommunities.org/id/london-borough-council/sutton,London Borough of Sutton,23/10/2018,1262892,57.00 , NATIONAL EXPRESS LIMIT,57.00 - E072 0312 9999- NATIONAL COACH.PNG,Peoples Services Directorate,Travelling and Subsistence Allowances,A530,
http://opendatacommunities.org/id/london-borough-council/sutton,London Borough of Sutton,23/10/2018,1262892,57.00 , NATIONAL EXPRESS LIMIT,57.00 - E072 0312 9999 - NATIONAL COACH .PNG,Peoples Services Directorate,Travelling and Subsistence Allowances,A530,
http://opendatacommunities.org/id/london-borough-council/sutton,London Borough of Sutton,30/05/2018,1262973,20.00 , OYSTER RENEW WEB,OYSTER CARD TOP UP,Peoples Services Directorate,Travelling and Subsistence Allowances,A530,
http://opendatacommunities.org/id/london-borough-council/sutton,London Borough of Sutton,19/10/2018,1262892,20.00 , OYSTER AUTO-TOP UP,20.00 - A530 0312 9999 - 17.10.18 - OYSTER CARD TOPU,Peoples Services Directorate,Travelling and Subsistence Allowances,A530,
http://opendatacommunities.org/id/london-borough-council/sutton,London Borough of Sutton,21/10/2018,1262892,20.00 , OYSTER AUTO-TOP UP,20.00 - A530 0312 9999 - 17.10.2018 - OYSTER CARD TOPUP.PDF,Peoples Services Directorate,Travelling and Subsistence Allowances,A530,
http://opendatacommunities.org/id/london-borough-council/sutton,London Borough of Sutton,20/10/2018,1262892,57.00 , NATIONAL EXPRESS LIMIT,57.00 - A530 0312 9999 - NATIONAL EXPRESS VB.PNG,Peoples Services Directorate,Travelling and Subsistence Allowances,A530,
http://opendatacommunities.org/id/london-borough-council/sutton,London Borough of Sutton,20/10/2018,1262892,57.00 , NATIONAL EXPRESS LIMIT,57.00 - A530 0312 9999 - NATIONAL EXPRESS VB.PNG,Peoples Services Directorate,Travelling and Subsistence Allowances,A530,
http://opendatacommunities.org/id/london-borough-council/sutton,London Borough of Sutton,04/05/2018,1262970,135.98 , FLYBEAMLT AMLTJD,FLIGHT PURCHASED FOR STAFF MEMEBER ON THE FSCP,Peoples Services Directorate,Travelling and Subsistence Allowances,A530,
http://opendatacommunities.org/id/london-borough-council/sutton,London Borough of Sutton,08/05/2018,1262970,20.00 , OYSTER BUS AUTOSET,OYSTER TOP UP,Peoples Services Directorate,Travelling and Subsistence Allowances,A530,
http://opendatacommunities.org/id/london-borough-council/sutton,London Borough of Sutton,08/05/2018,1262970,20.00 , OYSTER BUS AUTOSET,OYSTRE TOP UP FOR FSCP/COURT,Peoples Services Directorate,Travelling and Subsistence Allowances,A530,
http://opendatacommunities.org/id/london-borough-council/sutton,London Borough of Sutton,17/10/2018,1262892,20.00 , OYSTER AUTO-TOP UP,20.00 - A530 0312 9999 - 17.10.18 - OYSTER CARD TOPUP.PDF,Peoples Services Directorate,Travelling and Subsistence Allowances,A530,
http://opendatacommunities.org/id/london-borough-council/sutton,London Borough of Sutton,14/10/2018,1262892,20.00 , OYSTER AUTO-TOP UP,20.00 - A530 0312 9999 - 14.10.18 - OYSTER CARD TOPUP.PDF,Peoples Services Directorate,Travelling and Subsistence Allowances,A530,
http://opendatacommunities.org/id/london-borough-council/sutton,London Borough of Sutton,13/05/2018,1262970,20.00 , OYSTER BUS AUTOTOP,OYSTER AUTO TOP UP,Peoples Services Directorate,Travelling and Subsistence Allowances,A530,
http://opendatacommunities.org/id/london-borough-council/sutton,London Borough of Sutton,22/06/2018,1262973,20.00 , OYSTER BUS AUTOTOP,OYSTER TOP UP,Peoples Services Directorate,Travelling and Subsistence Allowances,A530,
http://opendatacommunities.org/id/london-borough-council/sutton,London Borough of Sutton,23/06/2018,1262973,20.00 , OYSTER AUTOTOPUP,OYSTER TOP UP,Peoples Services Directorate,Travelling and Subsistence Allowances,A530,
http://opendatacommunities.org/id/london-borough-council/sutton,London Borough of Sutton,11/10/2018,1262892,57.00 , NATIONAL EXPRESS LIMIT,57.00 - E072 0312 9999 - NATIONAL COACH EXPRESS.PNG,Peoples Services Directorate,Travelling and Subsistence Allowances,A530,
http://opendatacommunities.org/id/london-borough-council/sutton,London Borough of Sutton,11/10/2018,1262892,57.00 , NATIONAL EXPRESS LIMIT,57.00 - A530 0312 9999 - NATIONAL EXPRESS VB.PNG,Peoples Services Directorate,Travelling and Subsistence Allowances,A530,
http://opendatacommunities.org/id/london-borough-council/sutton,London Borough of Sutton,10/10/2018,1262892,20.00 , OYSTER AUTO-TOP UP,20.00 - A530 0312 9999 - 10.10.2018 - OYSTER CARD TOPUP.,Peoples Services Directorate,Travelling and Subsistence Allowances,A530,
http://opendatacommunities.org/id/london-borough-council/sutton,London Borough of Sutton,09/10/2018,1262892,53.00 , NATIONAL EXPRESS LIMIT,53.00 - A530 0312 9999 - NATIONAL COACH (1).PNG,Peoples Services Directorate,Travelling and Subsistence Allowances,A530,
http://opendatacommunities.org/id/london-borough-council/sutton,London Borough of Sutton,05/10/2018,1262892,20.00 , OYSTER AUTO-TOP UP,20.00 - A530 0312 9999 - OYSTER CARD TOPUP.PDF,Peoples Services Directorate,Travelling and Subsistence Allowances,A530,
http://opendatacommunities.org/id/london-borough-council/sutton,London Borough of Sutton,06/10/2018,1262892,20.00 , OYSTER AUTO-TOP UP,20.00 - A530 0312 9999 - 7.10.18 - OYSTER CARD TOPUP.PDF,Peoples Services Directorate,Travelling and Subsistence Allowances,A530,
http://opendatacommunities.org/id/london-borough-council/sutton,London Borough of Sutton,07/10/2018,1262892,20.00 , OYSTER AUTO-TOP UP,20.00 - A530 0312 9999 - 7.10.18 - OYSTER CARD TOPUP.PDF,Peoples Services Directorate,Travelling and Subsistence Allowances,A530,
http://opendatacommunities.org/id/london-borough-council/sutton,London Borough of Sutton,04/10/2018,1262892,57.00 , NATIONAL EXPRESS LIMIT,57.00 - A530 0312 9999 - NATIONAL EXPRESS VB.PNG,Peoples Services Directorate,Travelling and Subsistence Allowances,A530,
http://opendatacommunities.org/id/london-borough-council/sutton,London Borough of Sutton,04/10/2018,1262892,53.00 , NATIONAL EXPRESS LIMIT,53.00 - A530 0312 9999 - NATIONAL COACH (1).PNG,Peoples Services Directorate,Travelling and Subsistence Allowances,A530,
http://opendatacommunities.org/id/london-borough-council/sutton,London Borough of Sutton,02/10/2018,1262892,57.00 , NATIONAL EXPRESS LIMIT,57.00 - A530 0312 9999 - NATIONAL EXPRESS VB.PNG,Peoples Services Directorate,Travelling and Subsistence Allowances,A530,
http://opendatacommunities.org/id/london-borough-council/sutton,London Borough of Sutton,28/09/2018,1262892,20.00 , OYSTER AUTO-TOP UP,OYSTER AUTO TOP UP,Peoples Services Directorate,Travelling and Subsistence Allowances,A530,
http://opendatacommunities.org/id/london-borough-council/sutton,London Borough of Sutton,29/05/2018,1262973,16.98 , AMAZON UK MARKETPLACE,AMAZON PURCHASE FOR FSCP,Peoples Services Directorate,Materials - General,F100,
http://opendatacommunities.org/id/london-borough-council/sutton,London Borough of Sutton,08/10/2018,1262892,127.00 , HM PASSPORT,127.00 - F106 0312 9999 - PASSPORT OFFICE APPOINTMENT.PNG,Peoples Services Directorate,Personal Requisites,F106,
http://opendatacommunities.org/id/london-borough-council/sutton,London Borough of Sutton,14/06/2018,1262973,(234.00), GRO HM PASSPORT OFFICE,BIRTH CERTS  REFUND,Peoples Services Directorate,Personal Requisites,F106,
http://opendatacommunities.org/id/london-borough-council/sutton,London Borough of Sutton,14/06/2018,1262973,234.00 , GRO HM PASSPORT OFFICE,BIRTH CERTS,Peoples Services Directorate,Personal Requisites,F106,
http://opendatacommunities.org/id/london-borough-council/sutton,London Borough of Sutton,19/06/2018,1262973,30.00 , LBSUTTON,BIRTH CERT PAYMENT,Peoples Services Directorate,Personal Requisites,F106,
http://opendatacommunities.org/id/london-borough-council/sutton,London Borough of Sutton,19/06/2018,1262973,117.00 , GRO HM PASSPORT OFFICE,BIRTH CERT PAYMENT,Peoples Services Directorate,Personal Requisites,F106,
http://opendatacommunities.org/id/london-borough-council/sutton,London Borough of Sutton,19/09/2018,1262892,(9.25), GRO HM PASSPORT OFFICE,9.25 - F106 0312 9999 - BIRTH CERT REFUND.PDF,Peoples Services Directorate,Personal Requisites,F106,
http://opendatacommunities.org/id/london-borough-council/sutton,London Borough of Sutton,11/10/2018,1262892,(29.15), GRO HM PASSPORT OFFICE,BIRTH CERT PURCHASED,Peoples Services Directorate,Personal Requisites,F106,
http://opendatacommunities.org/id/london-borough-council/sutton,London Borough of Sutton,11/10/2018,1262892,29.15 , GRO HM PASSPORT OFFICE,29.15 - F106 0312 9999 - REFUND - GRO.PNG,Peoples Services Directorate,Personal Requisites,F106,
http://opendatacommunities.org/id/london-borough-council/sutton,London Borough of Sutton,09/10/2018,1262892,61.80 , GRO HM PASSPORT OFFICE,61.80 - F106 0312 9999 - GRO REGISTER OFFICE.PNG,Peoples Services Directorate,Personal Requisites,F106,
http://opendatacommunities.org/id/london-borough-council/sutton,London Borough of Sutton,03/10/2018,1262892,145.91 , ETIHAD AIRWAYS - ETIHADAIR,TRAVEL,Peoples Services Directorate,Accommodation - Bed and Breakfast,H202,
http://opendatacommunities.org/id/london-borough-council/sutton,London Borough of Sutton,26/09/2018,1262892,47.50 , NATIONAL EXPRESS LIMIT,57.00 - H212 0312 9999 - COACH TICKET,Peoples Services Directorate,C.C.A Travel & Subsistance,H212,
http://opendatacommunities.org/id/london-borough-council/sutton,London Borough of Sutton,23/10/2018,1262892,57.00 , NATIONAL EXPRESS LIMIT,57.00 - A530 0312 9999 - NATIONAL EXPRESS VB.PNG,Peoples Services Directorate,C.C.A Travel & Subsistance,H212,
http://opendatacommunities.org/id/london-borough-council/sutton,London Borough of Sutton,02/05/2018,1262970,100.00 , WM MORRISONS,FOOD VOUCHERS BOUGHT FOR FSCP,Peoples Services Directorate,C.C.A Food & Clothing,H213,
http://opendatacommunities.org/id/london-borough-council/sutton,London Borough of Sutton,02/10/2018,1262892,(7.15), UKVI,$406.00 USD - 311.95 - H301 0312 9999.PNG,Peoples Services Directorate,Client Care/Assistance,H301,
http://opendatacommunities.org/id/london-borough-council/sutton,London Borough of Sutton,26/09/2018,1262892,47.50 , NATIONAL EXPRESS LIMIT,57.00 - H301 0312 9999 - NATIONAL EXPRESS,Peoples Services Directorate,Client Care/Assistance,H301,
http://opendatacommunities.org/id/london-borough-council/sutton,London Borough of Sutton,24/08/2018,1262892,(259.96), UKVI,$406.00 USD - 311.95 - H301 0312 9999.PNG,Peoples Services Directorate,Education Allowance,H321,
http://opendatacommunities.org/id/london-borough-council/sutton,London Borough of Sutton,02/05/2018,1262970,410.83 , TRAVELODGE,IO ACCOMODATION,Peoples Services Directorate,Accommodation - Supported Living,H201,
http://opendatacommunities.org/id/london-borough-council/sutton,London Borough of Sutton,18/06/2018,1262973,724.50 , TRAVELODGE,EMERGENCY ACCOMADATION,Peoples Services Directorate,Accommodation - Bed and Breakfast,H202,
http://opendatacommunities.org/id/london-borough-council/sutton,London Borough of Sutton,18/06/2018,1262973,85.50 , TRAVELODGE,OO ACCOMODATION,Peoples Services Directorate,Accommodation - Bed and Breakfast,H202,
http://opendatacommunities.org/id/london-borough-council/sutton,London Borough of Sutton,07/06/2018,1262973,675.67 , TRAVELODGE,ACCOMMODATION FOR CLIENT,Peoples Services Directorate,Accommodation - Bed and Breakfast,H202,
http://opendatacommunities.org/id/london-borough-council/sutton,London Borough of Sutton,26/04/2018,1262970,543.00 , TRAVELODGE,EMERGENCY ACCOMADATION FOR NRPF CLIENT,Peoples Services Directorate,Client Care/Assistance,H301,
http://opendatacommunities.org/id/london-borough-council/sutton,London Borough of Sutton,14/10/2018,1262892,20.00 , OYSTER AUTO-TOP UP,20.00 - A530 0318 9999 - 14.10.2018 - OYSTER CARD TOPUP.PDF,Peoples Services Directorate,Travelling and Subsistence Allowances,A530,
http://opendatacommunities.org/id/london-borough-council/sutton,London Borough of Sutton,13/10/2018,1262892,20.00 , OYSTER AUTO-TOP UP,20.00 - A530 0318 9999 - 13.10.18 - OYSTER CARD TOPUP.P,Peoples Services Directorate,Travelling and Subsistence Allowances,A530,
http://opendatacommunities.org/id/london-borough-council/sutton,London Borough of Sutton,13/10/2018,1262892,20.00 , OYSTER AUTO-TOP UP,20.00 - A530 0318 9999 - 13.10.18 - OYSTER CARD TOPUP.PDF,Peoples Services Directorate,Travelling and Subsistence Allowances,A530,
http://opendatacommunities.org/id/london-borough-council/sutton,London Borough of Sutton,02/05/2018,1262970,100.00 , WM MORRISONS,FOOD VOUCHERS,Peoples Services Directorate,C.C.A Food & Clothing,H213,
http://opendatacommunities.org/id/london-borough-council/sutton,London Borough of Sutton,01/06/2018,1262973,327.44 , WWW.ARGOS.CO.UK,392.93 - H301 0318 9999 - ARGOS - BED AND DRAWS FOR CLIENT,Peoples Services Directorate,Client Care/Assistance,H301,
http://opendatacommunities.org/id/london-borough-council/sutton,London Borough of Sutton,04/05/2018,1262970,135.98 , FLYBEAMHW AMHWRB,FLIGHTS PURCHASED,Peoples Services Directorate,Travelling and Subsistence Allowances,A530,
http://opendatacommunities.org/id/london-borough-council/sutton,London Borough of Sutton,05/06/2018,1262973,16.50 , WWW.WIGHTLINK.CO.UK,19.80 - A530 0320 9999 - WIGHTLINK FERRY.PDF,Peoples Services Directorate,Travelling and Subsistence Allowances,A530,
http://opendatacommunities.org/id/london-borough-council/sutton,London Borough of Sutton,25/04/2018,1262970,67.99 , PREMIER INN,CLIENT ACCOMADATION,Peoples Services Directorate,Accommodation - Bed and Breakfast,H202,
http://opendatacommunities.org/id/london-borough-council/sutton,London Borough of Sutton,28/04/2018,1262970,(8.99), PREMIER INN,BREAKFAST REFUND,Peoples Services Directorate,Accommodation - Bed and Breakfast,H202,
http://opendatacommunities.org/id/london-borough-council/sutton,London Borough of Sutton,24/10/2018,1262892,153.00 , TRAVELODGE,153.00 - H202 0321 9999 - LONDON SOUTH CROYDON TARVELODGE.PNG,Peoples Services Directorate,Accommodation - Bed and Breakfast,H202,
http://opendatacommunities.org/id/london-borough-council/sutton,London Borough of Sutton,05/06/2018,1262973,30.00 , LBSUTTON,BIRTH CERTIFICATE,Peoples Services Directorate,Personal Requisites,F106,
http://opendatacommunities.org/id/london-borough-council/sutton,London Borough of Sutton,15/06/2018,1262973,128.25 , TRAVELODGE,TRAVELODGE FOR CLIENT,Peoples Services Directorate,Accommodation - Bed and Breakfast,H202,
http://opendatacommunities.org/id/london-borough-council/sutton,London Borough of Sutton,18/10/2018,1262892,79.17 , PREMIER INN,PREMIER INN - BOOKING FOR GOULDINGS,Peoples Services Directorate,Accommodation - Bed and Breakfast,H202,
http://opendatacommunities.org/id/london-borough-council/sutton,London Borough of Sutton,18/10/2018,1262892,54.17 , PREMIER INN,PREMIER INN - BOOKING FOR GOULDINGS.PNG,Peoples Services Directorate,Accommodation - Bed and Breakfast,H202,
http://opendatacommunities.org/id/london-borough-council/sutton,London Borough of Sutton,18/10/2018,1262892,363.33 , TRAVELODGE,HOTEL BOOKING,Peoples Services Directorate,Specialist Adoption & Permanence (SGO),H347,
http://opendatacommunities.org/id/london-borough-council/sutton,London Borough of Sutton,08/10/2018,1262892,105.83 , HOLIDAY INNS,127.00 - H211 0331 9999 - HOTEL HOLIDAY INN .PNG,Chief Executive's Directorate,C.C.A Rent & Utilities,H211,
http://opendatacommunities.org/id/london-borough-council/sutton,London Borough of Sutton,24/10/2018,1262892,5.48 , AMZN MKTP UK MT2D50134,AMAZON ORDER,Peoples Services Directorate,Personal Requisites,F106,
http://opendatacommunities.org/id/london-borough-council/sutton,London Borough of Sutton,23/10/2018,1262892,32.82 , AMAZON.CO.UK MT2Z461U4,AMAZON ORDER,Peoples Services Directorate,Personal Requisites,F106,
http://opendatacommunities.org/id/london-borough-council/sutton,London Borough of Sutton,23/10/2018,1262892,33.32 , AMAZON.CO.UK MT3N470W4,AMAZON ORDER,Peoples Services Directorate,Personal Requisites,F106,
http://opendatacommunities.org/id/london-borough-council/sutton,London Borough of Sutton,22/10/2018,1262892,66.50 , AMZN MKTP UK MT17K4E34,AMAZON ORDER,Peoples Services Directorate,Personal Requisites,F106,
http://opendatacommunities.org/id/london-borough-council/sutton,London Borough of Sutton,29/05/2018,1262973,34.02 , WWW.OXYGENFREEJUMP,TICKETS PURCHASED FOR CHILD CONTACT,Peoples Services Directorate,Personal Requisites,F106,
http://opendatacommunities.org/id/london-borough-council/sutton,London Borough of Sutton,22/10/2018,1262892,81.34 , TESCO STORES 5999,96.34 - F106 0340 9999 - TESCO ORDER SFC.PNG,Peoples Services Directorate,Personal Requisites,F106,
http://opendatacommunities.org/id/london-borough-council/sutton,London Borough of Sutton,21/06/2018,1262973,21.94 , TESCO-SELLER_IST_1_240,BATTERIES,Peoples Services Directorate,Refreshments,F155,
http://opendatacommunities.org/id/london-borough-council/sutton,London Borough of Sutton,22/06/2018,1262973,68.51 , TESCO STORES 5999,REFRESHMENTS FOR SUTTON FAMILY CENTRE,Peoples Services Directorate,Refreshments,F155,
http://opendatacommunities.org/id/london-borough-council/sutton,London Borough of Sutton,30/05/2018,1262973,73.08 , TESCO STORES 5999,ORDER OF SUPPLIES FOR SUTTON FAMILY CENTRE BASIC REFRESHMENTS FOR FAMILIES AT THE CENTRE,Peoples Services Directorate,Refreshments,F155,
http://opendatacommunities.org/id/london-borough-council/sutton,London Borough of Sutton,21/06/2018,1262973,102.00 , CHESSINGTON WORLD,TICKETS FOR CLIENT CONTACT,Peoples Services Directorate,Miscellaneous Costs,G499,
http://opendatacommunities.org/id/london-borough-council/sutton,London Borough of Sutton,02/05/2018,1262970,100.00 , WM MORRISONS,FOOD VOUCHERS,Peoples Services Directorate,C.C.A Food & Clothing,H213,
http://opendatacommunities.org/id/london-borough-council/sutton,London Borough of Sutton,27/09/2018,1262892,8.32 , ARGOS RETAIL GROUP,CELEBRATING SUCCESS,Chief Executive's Directorate,Provisions - General,F150,
http://opendatacommunities.org/id/london-borough-council/sutton,London Borough of Sutton,27/09/2018,1262892,20.47 , TESCO STORES 5999,24.56 - F155 0363 9999 - TESCO ORDER FOR QA .PNG,Chief Executive's Directorate,Refreshments,F155,
http://opendatacommunities.org/id/london-borough-council/sutton,London Borough of Sutton,15/06/2018,1262973,156.00 , PAYPAL  CENTRALCONF,COURSE FEES,Chief Executive's Directorate,Training - Course Fees,A520,
http://opendatacommunities.org/id/london-borough-council/sutton,London Borough of Sutton,04/05/2018,1262970,315.00 , EB  OT TOOLS FOR AUTIS,TRAINING COURSE PURCHASED FOR THE CHILDRENS PROFESSIONAL TEAM.,Chief Executive's Directorate,Training - Course Fees,A520,
http://opendatacommunities.org/id/london-borough-council/sutton,London Borough of Sutton,11/05/2018,1262970,315.00 , EB  OT TOOLS FOR AUTIS,EVENT TICKETS FOR STAFF TRAINING,Chief Executive's Directorate,Training - Course Fees,A520,
http://opendatacommunities.org/id/london-borough-council/sutton,London Borough of Sutton,09/10/2018,1262892,202.00 , TRAVELODGE,202.00 - H202 0371 9999 - TRAVELODGE,Peoples Services Directorate,Accommodation - Bed and Breakfast,H202,
http://opendatacommunities.org/id/london-borough-council/sutton,London Borough of Sutton,08/10/2018,1262892,373.54 , TRAVELODGE,448.25 - H211 0371 9999 - TRAVELODGE,Peoples Services Directorate,Accommodation - Bed and Breakfast,H202,
http://opendatacommunities.org/id/london-borough-council/sutton,London Borough of Sutton,24/05/2018,1262970,112.50 , TRAVELODGE,EMERGENCY ACCOMADATION FOR BLUE CENTRAL TEAM,Peoples Services Directorate,Travelling and Subsistence Allowances,A530,
http://opendatacommunities.org/id/london-borough-council/sutton,London Borough of Sutton,25/10/2018,1262892,113.33 , TESCO STORES 5999,F106 0384 9999 - TESCO ORDER .PNG,Peoples Services Directorate,Personal Requisites,F106,
http://opendatacommunities.org/id/london-borough-council/sutton,London Borough of Sutton,24/05/2018,1262970,843.75 , TRAVELODGE,EMERGENCY ACCMADATION FOR CLIENT,Peoples Services Directorate,Accommodation - Bed and Breakfast,H202,
http://opendatacommunities.org/id/london-borough-council/sutton,London Borough of Sutton,11/06/2018,1262973,93.00 , TRAINLINE,AMANDA CHERRINGTON  - TRAINS TO NEWCASTLE (33.34%),"Environment, Housing & Regeneration Directorate",Travelling and Subsistence Allowances,A530,
http://opendatacommunities.org/id/london-borough-council/sutton,London Borough of Sutton,13/06/2018,1262973,41.34 , TRAVELODGE,AMANDA CHERRINGTON - ROOM AT NEWCASTLE (33.34%),"Environment, Housing & Regeneration Directorate",Travelling and Subsistence Allowances,A530,
http://opendatacommunities.org/id/london-borough-council/sutton,London Borough of Sutton,20/10/2018,1262892,20.00 , OYSTER AUTO-TOP UP,OYSTER TOP UP,"Environment, Housing & Regeneration Directorate",General Office Expenses,F235,
http://opendatacommunities.org/id/london-borough-council/sutton,London Borough of Sutton,17/10/2018,1262892,20.00 , OYSTER AUTO-TOP UP,OYSTER TOP UP,"Environment, Housing & Regeneration Directorate",General Office Expenses,F235,
http://opendatacommunities.org/id/london-borough-council/sutton,London Borough of Sutton,10/10/2018,1262892,43.70 , TRAINLINE,TRAINS TO BRIGHTON RETURN FOR SOLACE (32.56%),"Environment, Housing & Regeneration Directorate",Travelling and Subsistence Allowances,A530,
http://opendatacommunities.org/id/london-borough-council/sutton,London Borough of Sutton,11/06/2018,1262973,93.00 , TRAINLINE,TRAINS TO NEWCASTLE (33.33%),"Environment, Housing & Regeneration Directorate",Travelling and Subsistence Allowances,A530,
http://opendatacommunities.org/id/london-borough-council/sutton,London Borough of Sutton,13/06/2018,1262973,41.33 , TRAVELODGE,ROOM AT NEWCASTLE (33.33%),"Environment, Housing & Regeneration Directorate",Travelling and Subsistence Allowances,A530,
http://opendatacommunities.org/id/london-borough-council/sutton,London Borough of Sutton,19/10/2018,1262892,20.00 , OYSTER AUTO-TOP UP,OYSTER TOP UP,"Environment, Housing & Regeneration Directorate",General Office Expenses,F235,
http://opendatacommunities.org/id/london-borough-council/sutton,London Borough of Sutton,28/09/2018,1262892,20.00 , OYSTER AUTO-TOP UP,OYSTER TOP UP,"Environment, Housing & Regeneration Directorate",General Office Expenses,F235,
http://opendatacommunities.org/id/london-borough-council/sutton,London Borough of Sutton,30/05/2018,1262973,25.00 , OYSTER ISSUE WEB,OYSTER CARD TOP UP,"Environment, Housing & Regeneration Directorate",General Office Expenses,F235,
http://opendatacommunities.org/id/london-borough-council/sutton,London Borough of Sutton,04/06/2018,1262973,10.00 , OYSTER RENEW WEB,OYSTER CARD TOP UP,"Environment, Housing & Regeneration Directorate",General Office Expenses,F235,
http://opendatacommunities.org/id/london-borough-council/sutton,London Borough of Sutton,16/06/2018,1262973,20.00 , OYSTER AUTOTOPUP,OYSTER CARD TOP UP,"Environment, Housing & Regeneration Directorate",General Office Expenses,F235,
http://opendatacommunities.org/id/london-borough-council/sutton,London Borough of Sutton,17/10/2018,1262892,26.97 , AMZN MKTP UK,TWO-WAY SPLITTERS FOR LW(ELM) AND X-MAS LIGHTS,"Environment, Housing & Regeneration Directorate",Other-Materials,F115,
http://opendatacommunities.org/id/london-borough-council/sutton,London Borough of Sutton,11/10/2018,1262892,65.00 , INDIGO PARK SVS UK - L,TEST PERMIT RENEWAL (RPRZ10008),"Environment, Housing & Regeneration Directorate",Fees - Other,F299,
http://opendatacommunities.org/id/london-borough-council/sutton,London Borough of Sutton,20/06/2018,1262973,71.63 , AMAZON UK MARKETPLACE,DUAL SCREEN SPLITTER PORTS - PARKING OFFICE,"Environment, Housing & Regeneration Directorate",Purchase of IT Equipment,F380,
http://opendatacommunities.org/id/london-borough-council/sutton,London Borough of Sutton,21/06/2018,1262973,48.24 , AMAZON UK MARKETPLACE,DISPLAY PORTS - PARKING OFFICE,"Environment, Housing & Regeneration Directorate",Purchase of IT Equipment,F380,
http://opendatacommunities.org/id/london-borough-council/sutton,London Borough of Sutton,09/06/2018,1262973,6.66 , AMAZON PRIME,AMAZON PRIME,Chief Executive's Directorate,Repairs to Administrative Equipment,F030,
http://opendatacommunities.org/id/london-borough-council/sutton,London Borough of Sutton,20/06/2018,1262973,30.00 , AMAZON EU,LARGE PICTURE HANGING STRIPS,Chief Executive's Directorate,Repairs to Administrative Equipment,F030,
http://opendatacommunities.org/id/london-borough-council/sutton,London Borough of Sutton,22/06/2018,1262973,20.83 , WWW.SOLOPRESS.COM,SOLOPRESS LEAFLETS,Chief Executive's Directorate,Repairs to Administrative Equipment,F030,
http://opendatacommunities.org/id/london-borough-council/sutton,London Borough of Sutton,01/06/2018,1262973,15.00 , WWW.SOLOPRESS.COM,PRINTING,Chief Executive's Directorate,Repairs to Administrative Equipment,F030,
http://opendatacommunities.org/id/london-borough-council/sutton,London Borough of Sutton,03/10/2018,1262892,64.35 , AMZN MKTP UK,CASES FOR IPADS,Chief Executive's Directorate,Records and Casettes,F007,
http://opendatacommunities.org/id/london-borough-council/sutton,London Borough of Sutton,10/10/2018,1262892,173.25 , AMZN MKTP UK AMAZON.CO,"55 X 3M 17206 PICTURE HANGING STRIPS, LARGE",Chief Executive's Directorate,Repairs to Administrative Equipment,F030,
http://opendatacommunities.org/id/london-borough-council/sutton,London Borough of Sutton,15/06/2018,1262973,132.87 , SAINSBURYS TO YOU 0038,FOOD FOR WHITEHALL LAUNCH,Chief Executive's Directorate,Repairs to Administrative Equipment,F030,
http://opendatacommunities.org/id/london-borough-council/sutton,London Borough of Sutton,25/10/2018,1262892,34.65 , SAINSBURYS TO YOU 0038,WHITEHALL TEA ROOM SUPPLIES,Chief Executive's Directorate,Provisions - General,F150,
http://opendatacommunities.org/id/london-borough-council/sutton,London Borough of Sutton,18/10/2018,1262892,55.80 , SAINSBURYS TO YOU 0038,WHITEHALL TEA ROOM SUPPLIES,Chief Executive's Directorate,Provisions - General,F150,
http://opendatacommunities.org/id/london-borough-council/sutton,London Borough of Sutton,11/10/2018,1262892,74.95 , SAINSBURYS TO YOU 0038,WHITEHALL TEA ROOM SUPPLIES,Chief Executive's Directorate,Provisions - General,F150,
http://opendatacommunities.org/id/london-borough-council/sutton,London Borough of Sutton,04/10/2018,1262892,38.20 , SAINSBURYS TO YOU 0038,WHITEHALL TEA ROOM SUPPLIES,Chief Executive's Directorate,Provisions - General,F150,
http://opendatacommunities.org/id/london-borough-council/sutton,London Borough of Sutton,02/10/2018,1262892,17.47 , AMZN MKTP UK,CATERING GLOVES WHITEHALL TEA ROOM,Chief Executive's Directorate,Provisions - General,F150,
http://opendatacommunities.org/id/london-borough-council/sutton,London Borough of Sutton,27/09/2018,1262892,59.70 , SAINSBURYS TO YOU 0038,TEA ROOM SUPPLIES WHITEHALL HISTORIC HOUSE,Chief Executive's Directorate,Provisions - General,F150,
http://opendatacommunities.org/id/london-borough-council/sutton,London Borough of Sutton,12/10/2018,1262892,75.15 , SAINSBURYS 2331,LITTLE HOLLAND HOUSE EVENT SUPPLIES,Chief Executive's Directorate,Arts Programme,F306,
http://opendatacommunities.org/id/london-borough-council/sutton,London Borough of Sutton,20/10/2018,1262892,26.66 , HOME STORE,DOORMATS,Resources Directorate,General Office Expenses,F235,
http://opendatacommunities.org/id/london-borough-council/sutton,London Borough of Sutton,19/10/2018,1262892,69.23 , FLORAL IMAGE SUSSEX,CORPORATE FLOWER ARRANGEMENT FOR 2 MARRIAGE ROOMS,Resources Directorate,General Office Expenses,F235,
http://opendatacommunities.org/id/london-borough-council/sutton,London Borough of Sutton,05/10/2018,1262892,22.96 , TESCO STORE 3235,BISCUITS FOR CITIZENSHIP PLUS MISCELLANEOUS KITCHEN ITEMS,Resources Directorate,General Office Expenses,F235,
http://opendatacommunities.org/id/london-borough-council/sutton,London Borough of Sutton,03/06/2018,1262973,8.32 , SPOTIFY P0635E03B7,MONTHLY SUBSCRIPTION TO PLAY MUSIC AT WEDDINGS,Resources Directorate,Subscriptions - General,F450,
http://opendatacommunities.org/id/london-borough-council/sutton,London Borough of Sutton,06/06/2018,1262973,40.00 , WWW.ICO.GOV.UK,ANNUAL SUBSCRIPTION ICO,Resources Directorate,Subscriptions - General,F450,
http://opendatacommunities.org/id/london-borough-council/sutton,London Borough of Sutton,03/10/2018,1262892,8.32 , SPOTIFY P07B28398C,SPOTIFY MUSIC FOR CEREMONIES,Resources Directorate,Subscriptions - General,F450,
http://opendatacommunities.org/id/london-borough-council/sutton,London Borough of Sutton,04/06/2018,1262973,16.66 , SCREWFIX DIRECT,FOLDING SACK TRUCK,Resources Directorate,Miscellaneous Expenses,F620,
http://opendatacommunities.org/id/london-borough-council/sutton,London Borough of Sutton,09/06/2018,1262973,11.23 , AMAZON UK MARKETPLACE,PROTECTIVE CASE FOR GALAXY TABLET,Resources Directorate,Miscellaneous Expenses,F620,
http://opendatacommunities.org/id/london-borough-council/sutton,London Borough of Sutton,14/06/2018,1262973,27.29 , IKEA LIMITED,MISCELLANEOUS ITEMS FOR REGISTER OFFICE,Resources Directorate,Miscellaneous Expenses,F620,
http://opendatacommunities.org/id/london-borough-council/sutton,London Borough of Sutton,14/06/2018,1262973,51.16 , WWW.RICHARDHAWORTH.CO.,TABLECLOTHS,Resources Directorate,Miscellaneous Expenses,F620,
http://opendatacommunities.org/id/london-borough-council/sutton,London Borough of Sutton,20/06/2018,1262973,7.28 , WAITROSE 559,REFRESHMENTS FOR ZIPPORAH MEETING,Resources Directorate,Miscellaneous Expenses,F620,
http://opendatacommunities.org/id/london-borough-council/sutton,London Borough of Sutton,23/06/2018,1262973,3.33 , ICELAND,FRONT DOOR KEYS,Resources Directorate,Miscellaneous Expenses,F620,
http://opendatacommunities.org/id/london-borough-council/sutton,London Borough of Sutton,23/06/2018,1262973,8.32 , SOLE 2 SOLE,BATTERIES,Resources Directorate,Miscellaneous Expenses,F620,
http://opendatacommunities.org/id/london-borough-council/sutton,London Borough of Sutton,27/09/2018,1262892,42.67 , WWW.BLINDSBYPOST.CO.UK,REPLACEMENT SLATS FOR BLIND IN R1,Resources Directorate,Miscellaneous Expenses,F620,
http://opendatacommunities.org/id/london-borough-council/sutton,London Borough of Sutton,15/06/2018,1262973,151.67 , 24PRINT,WHITEHALL CHILDREN'S PACK RESOURCES,Chief Executive's Directorate,Records and Casettes,F007,
http://opendatacommunities.org/id/london-borough-council/sutton,London Borough of Sutton,18/06/2018,1262973,203.62 , AMAZON UK MARKETPLACE,WHITEHALL CHILDREN'S PACK RESOURCES,Chief Executive's Directorate,Records and Casettes,F007,
http://opendatacommunities.org/id/london-borough-council/sutton,London Borough of Sutton,08/06/2018,1262973,30.80 , wherethetradebuys.co.u,whitehall promotion,Chief Executive's Directorate,Other Services,F340,
http://opendatacommunities.org/id/london-borough-council/sutton,London Borough of Sutton,13/06/2018,1262973,20.00 , WWW.SOLOPRESS.COM,WHITEHALL EVALUATION POSTCODE,Chief Executive's Directorate,Other Services,F340,
http://opendatacommunities.org/id/london-borough-council/sutton,London Borough of Sutton,07/06/2018,1262973,29.95 , AMAZON UK MARKETPLACE,SURGE PROTECTORS LIFE CENTRE,"Environment, Housing & Regeneration Directorate",Other Equipment - Purchase,F015,
http://opendatacommunities.org/id/london-borough-council/sutton,London Borough of Sutton,07/06/2018,1262973,31.97 , AMAZON UK MARKETPLACE,SURGE PROTECTOR LIFE CENTRE,"Environment, Housing & Regeneration Directorate",Other Equipment - Purchase,F015,
http://opendatacommunities.org/id/london-borough-council/sutton,London Borough of Sutton,11/10/2018,1262892,20.00 , OYSTER AUTO-TOP UP,OYSTER TOP UP,"Environment, Housing & Regeneration Directorate",General Office Expenses,F235,
http://opendatacommunities.org/id/london-borough-council/sutton,London Borough of Sutton,07/06/2018,1262973,15.06 , AMAZON SVCS EU-UK AMAZ,AMAZON PURCHASE OF BOOK THE RISE & FALL,HRA,Books of Reference/Statute,F222,
http://opendatacommunities.org/id/london-borough-council/sutton,London Borough of Sutton,20/10/2018,1262892,20.00 , OYSTER AUTO-TOP UP,OYSTER TOP UP,HRA,General Office Expenses,F235,
http://opendatacommunities.org/id/london-borough-council/sutton,London Borough of Sutton,17/10/2018,1262892,20.00 , OYSTER AUTO-TOP UP,OYSTER TOP UP,HRA,General Office Expenses,F235,
http://opendatacommunities.org/id/london-borough-council/sutton,London Borough of Sutton,24/06/2018,1262973,20.00 , OYSTER AUTOTOPUP,OYSTER CARD TOP UP,HRA,General Office Expenses,F235,
http://opendatacommunities.org/id/london-borough-council/sutton,London Borough of Sutton,06/10/2018,1262892,20.00 , OYSTER AUTO-TOP UP,OYSTER TOP UP,"Environment, Housing & Regeneration Directorate",General Office Expenses,F235,
http://opendatacommunities.org/id/london-borough-council/sutton,London Borough of Sutton,24/06/2018,1262973,20.00 , OYSTER AUTOTOPUP,TEAM OYSTER,Chief Executive's Directorate,Travelling and Subsistence Allowances,A530,
http://opendatacommunities.org/id/london-borough-council/sutton,London Borough of Sutton,13/06/2018,1262973,41.33 , TRAVELODGE,ROOM AT NEWCASTLE (33.33%),Chief Executive's Directorate,Travelling and Subsistence Allowances,A530,
http://opendatacommunities.org/id/london-borough-council/sutton,London Borough of Sutton,25/06/2018,1262973,28.45 , TRAINLINE,TRAINS,Chief Executive's Directorate,Travelling and Subsistence Allowances,A530,
http://opendatacommunities.org/id/london-borough-council/sutton,London Borough of Sutton,19/10/2018,1262892,20.00 , OYSTER AUTO-TOP UP,TEAM OYSTER CARD,Chief Executive's Directorate,Travelling and Subsistence Allowances,A530,
http://opendatacommunities.org/id/london-borough-council/sutton,London Borough of Sutton,17/10/2018,1262892,20.00 , OYSTER AUTO-TOP UP,TEAM OYSTER CARD,Chief Executive's Directorate,Travelling and Subsistence Allowances,A530,
http://opendatacommunities.org/id/london-borough-council/sutton,London Borough of Sutton,12/10/2018,1262892,20.00 , OYSTER AUTO-TOP UP,TEAM OYSTER CARD,Chief Executive's Directorate,Travelling and Subsistence Allowances,A530,
http://opendatacommunities.org/id/london-borough-council/sutton,London Borough of Sutton,13/10/2018,1262892,20.00 , OYSTER AUTO-TOP UP,TEAM OYSTER CARD,Chief Executive's Directorate,Travelling and Subsistence Allowances,A530,
http://opendatacommunities.org/id/london-borough-council/sutton,London Borough of Sutton,11/10/2018,1262892,20.00 , OYSTER AUTO-TOP UP,TEAM OYSTER CARD,Chief Executive's Directorate,Travelling and Subsistence Allowances,A530,
http://opendatacommunities.org/id/london-borough-council/sutton,London Borough of Sutton,05/10/2018,1262892,20.00 , OYSTER AUTO-TOP UP,TEAM OYSTER CARD,Chief Executive's Directorate,Travelling and Subsistence Allowances,A530,
http://opendatacommunities.org/id/london-borough-council/sutton,London Borough of Sutton,05/10/2018,1262892,20.00 , OYSTER AUTO-TOP UP,TEAM OYSTER CARD,Chief Executive's Directorate,Travelling and Subsistence Allowances,A530,
http://opendatacommunities.org/id/london-borough-council/sutton,London Borough of Sutton,07/10/2018,1262892,20.00 , OYSTER AUTO-TOP UP,TEAM OYSTER CARD,Chief Executive's Directorate,Travelling and Subsistence Allowances,A530,
http://opendatacommunities.org/id/london-borough-council/sutton,London Borough of Sutton,03/10/2018,1262892,20.00 , OYSTER AUTO-TOP UP,TEAM OYSTER CARD,Chief Executive's Directorate,Travelling and Subsistence Allowances,A530,
http://opendatacommunities.org/id/london-borough-council/sutton,London Borough of Sutton,13/06/2018,1262973,20.00 , OYSTER AUTOTOPUP,TEAM OYSTER,Chief Executive's Directorate,Travelling and Subsistence Allowances,A530,
http://opendatacommunities.org/id/london-borough-council/sutton,London Borough of Sutton,14/06/2018,1262973,20.00 , OYSTER BUS AUTOTOP,TEAM OYSTER,Chief Executive's Directorate,Travelling and Subsistence Allowances,A530,
http://opendatacommunities.org/id/london-borough-council/sutton,London Borough of Sutton,14/06/2018,1262973,20.00 , OYSTER AUTOTOPUP,TEAM OYSTER,Chief Executive's Directorate,Travelling and Subsistence Allowances,A530,
http://opendatacommunities.org/id/london-borough-council/sutton,London Borough of Sutton,16/06/2018,1262973,20.00 , OYSTER AUTOTOPUP,TEAM OYSTER,Chief Executive's Directorate,Travelling and Subsistence Allowances,A530,
http://opendatacommunities.org/id/london-borough-council/sutton,London Borough of Sutton,16/06/2018,1262973,20.00 , OYSTER BUS AUTOTOP,TEAM OYSTER,Chief Executive's Directorate,Travelling and Subsistence Allowances,A530,
http://opendatacommunities.org/id/london-borough-council/sutton,London Borough of Sutton,23/06/2018,1262973,20.00 , OYSTER AUTOTOPUP,TEAM OYSTER,Chief Executive's Directorate,Travelling and Subsistence Allowances,A530,
http://opendatacommunities.org/id/london-borough-council/sutton,London Borough of Sutton,10/10/2018,1262892,46.76 , TRAINLINE,TRAINS TO BRIGHTON RETURN FOR SOLACE (34.84%),Chief Executive's Directorate,Travelling and Subsistence Allowances,A530,
http://opendatacommunities.org/id/london-borough-council/sutton,London Borough of Sutton,10/10/2018,1262892,43.75 , TRAINLINE,TRAINS TO BRIGHTON RETURN FOR SOLACE (32.6%),Chief Executive's Directorate,Travelling and Subsistence Allowances,A530,
http://opendatacommunities.org/id/london-borough-council/sutton,London Borough of Sutton,19/06/2018,1262973,87.45 , TRAINLINE,ATTENDING LGA CONFERENCE 3-5 JULY 2018,Chief Executive's Directorate,Travelling and Subsistence Allowances,A530,
http://opendatacommunities.org/id/london-borough-council/sutton,London Borough of Sutton,21/06/2018,1262973,64.00 , TRAINLINE,TRAIN TICKETS - TO ATTEND PEER CHALLENGE 24.06 .18 - 29.05.18,Chief Executive's Directorate,Travelling and Subsistence Allowances,A530,
http://opendatacommunities.org/id/london-borough-council/sutton,London Borough of Sutton,11/06/2018,1262973,93.00 , TRAINLINE,TRAINS TO NEWCASTLE (33.33%),Chief Executive's Directorate,Travelling and Subsistence Allowances,A530,
http://opendatacommunities.org/id/london-borough-council/sutton,London Borough of Sutton,15/10/2018,1262892,5.02 , MAILCHIMP    MONTHLY,WEN HOSTING,Chief Executive's Directorate,Fees - Computer Software,F384,
http://opendatacommunities.org/id/london-borough-council/sutton,London Borough of Sutton,14/10/2018,1262892,182.48 , MAILCHIMP    MONTHLY,WEB HOSTING,Chief Executive's Directorate,Fees - Computer Software,F384,
http://opendatacommunities.org/id/london-borough-council/sutton,London Borough of Sutton,10/06/2018,1262973,66.23 , AMAZON EU,SCREEN FILTER,Chief Executive's Directorate,Fees - Computer Software,F384,
http://opendatacommunities.org/id/london-borough-council/sutton,London Borough of Sutton,14/06/2018,1262973,375.80 , MAILCHIMP    MONTHLY,WEB HOSTING,Chief Executive's Directorate,Fees - Computer Software,F384,
http://opendatacommunities.org/id/london-borough-council/sutton,London Borough of Sutton,15/06/2018,1262973,10.33 , MAILCHIMP    MONTHLY,WEB HOSTING,Chief Executive's Directorate,Fees - Computer Software,F384,
http://opendatacommunities.org/id/london-borough-council/sutton,London Borough of Sutton,28/09/2018,1262892,225.00 , WWW.ICSA.ORG.UK,COMPANY SECRETARY EXAM,Resources Directorate,Training - Course Fees,A520,
http://opendatacommunities.org/id/london-borough-council/sutton,London Borough of Sutton,13/06/2018,1262973,44.95 , BOOK NETWORK INTER,CORPORATE SECRETARIAL PRACTICE 5E DG (DOWNLOAD),Resources Directorate,Training - Course Fees,A520,
http://opendatacommunities.org/id/london-borough-council/sutton,London Borough of Sutton,15/10/2018,1262892,86.00 , EAST MIDLANDS TRAINS,RETURN TRAIN TICKET FROM ST. PANCRAS TO NOTTINGHAM 22ND - 23RD NOVEMBER 2018,Resources Directorate,Travelling and Subsistence Allowances,A530,
http://opendatacommunities.org/id/london-borough-council/sutton,London Borough of Sutton,25/10/2018,1262892,1.27 , LUCID SOFTWARE INC.,EXCHANGE RATE ANNUAL SUBSCRIPTION,Resources Directorate,Purchase of IT Equipment,F380,
http://opendatacommunities.org/id/london-borough-council/sutton,London Borough of Sutton,24/10/2018,1262892,46.09 , LUCID SOFTWARE INC.,ANNUAL SUBSCRIPTION FOR LUCID SOFTWARE FOR COMMITTEE SERVICES,Resources Directorate,Purchase of IT Equipment,F380,
http://opendatacommunities.org/id/london-borough-council/sutton,London Borough of Sutton,16/10/2018,1262892,422.88 , AMZN MKTP UK AMAZON.CO,422.88 - F001 4114 9999 - AMAZON - REDACTING PENS.PNG,Resources Directorate,Administrative Equipment,F001,
http://opendatacommunities.org/id/london-borough-council/sutton,London Borough of Sutton,25/10/2018,1262892,700.00 , WM MORRISONS STORE,MORRISON'S VOUCHERS,Resources Directorate,Client Care/Assistance,H301,
http://opendatacommunities.org/id/london-borough-council/sutton,London Borough of Sutton,04/10/2018,1262892,300.00 , WM MORRISONS STORE,MORRISON'S VOUCHERS,Resources Directorate,Client Care/Assistance,H301,
http://opendatacommunities.org/id/london-borough-council/sutton,London Borough of Sutton,04/10/2018,1262892,500.00 , WM MORRISONS STORE,MORRISON'S VOUCHERS,Resources Directorate,Client Care/Assistance,H301,
http://opendatacommunities.org/id/london-borough-council/sutton,London Borough of Sutton,14/06/2018,1262973,441.33 , HOTEL ON BOOKING.COM,HOTEL ACCOMMODATION FOR THE JULY 2018 LGA CONFERENCE,Resources Directorate,Members Expenses - Travel and Subsistence,F401,
http://opendatacommunities.org/id/london-borough-council/sutton,London Borough of Sutton,14/06/2018,1262973,118.86 , WWW.BANNERBOX.CO.UK,REPLACEMENT UNION JACK FLAG,Resources Directorate,Materials - General,F100,
http://opendatacommunities.org/id/london-borough-council/sutton,London Borough of Sutton,18/10/2018,1262892,25.00 , DAWSONS,PLAQUE FOR PAINTING IN MAYOR'S PARLOUR,Resources Directorate,Materials - General,F100,
http://opendatacommunities.org/id/london-borough-council/sutton,London Borough of Sutton,19/06/2018,1262973,15.00 , DAWSONS,PLAQUE FOR THE MAYORAL PORTRAI,Resources Directorate,Materials - General,F100,
http://opendatacommunities.org/id/london-borough-council/sutton,London Borough of Sutton,01/06/2018,1262973,3.48 , AMAZON SVCS EU-UK AMAZ,VISITOR'S BOOK FOR MAYOR'S PARLOUR,Resources Directorate,General Office Expenses,F235,
http://opendatacommunities.org/id/london-borough-council/sutton,London Borough of Sutton,30/05/2018,1262973,(180.00), MAJESTIC WINE,REFUND FOR DEPOSIT ON WINE GLASSES ANNUAL MAYOR MAKING 21 MAY 2018,Resources Directorate,Hospitality (VAT not Recoverable),F325,
http://opendatacommunities.org/id/london-borough-council/sutton,London Borough of Sutton,14/06/2018,1262973,220.67 , HOTEL ON BOOKING.COM,HOTEL ACCOMMODATION JULY 2018 LGA CONFERENCE,Resources Directorate,Members Expenses - Conferences,F400,
http://opendatacommunities.org/id/london-borough-council/sutton,London Borough of Sutton,14/06/2018,1262973,696.00 , HOTEL ON BOOKING.COM,HOTEL ACCOMMODATION JULY 20018 LGA CONFERENCE,Resources Directorate,Members Expenses - Conferences,F400,
http://opendatacommunities.org/id/london-borough-council/sutton,London Borough of Sutton,22/06/2018,1262973,193.50 , TRAINLINE,TRAIN TICKETS FOR JULY 2018 LGA CONFERENCE,Resources Directorate,Members Expenses - Travel and Subsistence,F401,
http://opendatacommunities.org/id/london-borough-council/sutton,London Borough of Sutton,15/10/2018,1262892,157.50 , KNOWDATA LIMITED,DOMESTIC ABUSE FORUM 7TH NOVEMBER 2018,Resources Directorate,Members Expenses - Other,F402,
http://opendatacommunities.org/id/london-borough-council/sutton,London Borough of Sutton,10/10/2018,1262892,(239.94), EB  SEMINAR BEING AN E,REFUND FOR CANCELLED TRAINING,Resources Directorate,Members Expenses - Other,F402,
http://opendatacommunities.org/id/london-borough-council/sutton,London Borough of Sutton,17/10/2018,1262892,100.00 , EB  HEALTH AND CARE EX,HEALTH CARE EXPLAINED - LONDON,Resources Directorate,Members Expenses - Other,F402,
http://opendatacommunities.org/id/london-borough-council/sutton,London Borough of Sutton,17/10/2018,1262892,40.00 , WWW.ICO.GOV.UK,ICO SUBSCRIPTION RENEWAL FOR 13 COUNCILLORS,Resources Directorate,Subscriptions - General,F450,
http://opendatacommunities.org/id/london-borough-council/sutton,London Borough of Sutton,17/10/2018,1262892,40.00 , WWW.ICO.GOV.UK,ICO SUBSCRIPTION RENEWAL FOR 13 COUNCILLORS,Resources Directorate,Subscriptions - General,F450,
http://opendatacommunities.org/id/london-borough-council/sutton,London Borough of Sutton,17/10/2018,1262892,40.00 , WWW.ICO.GOV.UK,ICO SUBSCRIPTION RENEWAL FOR 13 COUNCILLORS,Resources Directorate,Subscriptions - General,F450,
http://opendatacommunities.org/id/london-borough-council/sutton,London Borough of Sutton,28/09/2018,1262892,40.00 , WWW.ICO.GOV.UK,ICO RENEWAL,Resources Directorate,Subscriptions - General,F450,
http://opendatacommunities.org/id/london-borough-council/sutton,London Borough of Sutton,06/06/2018,1262973,40.00 , WWW.ICO.GOV.UK,COUNCILLOR ICO RENEWAL,Resources Directorate,Subscriptions - General,F450,
http://opendatacommunities.org/id/london-borough-council/sutton,London Borough of Sutton,06/06/2018,1262973,40.00 , WWW.ICO.GOV.UK,COUNCILLOR ICO RENEWAL,Resources Directorate,Subscriptions - General,F450,
http://opendatacommunities.org/id/london-borough-council/sutton,London Borough of Sutton,06/06/2018,1262973,40.00 , WWW.ICO.GOV.UK,COUNCILLOR ICO RENEWAL,Resources Directorate,Subscriptions - General,F450,
http://opendatacommunities.org/id/london-borough-council/sutton,London Borough of Sutton,06/06/2018,1262973,40.00 , WWW.ICO.GOV.UK,COUNCILLOR ICO RENEWAL,Resources Directorate,Subscriptions - General,F450,
http://opendatacommunities.org/id/london-borough-council/sutton,London Borough of Sutton,17/10/2018,1262892,40.00 , WWW.ICO.GOV.UK,ICO SUBSCRIPTION RENEWAL FOR 13 COUNCILLORS,Resources Directorate,Subscriptions - General,F450,
http://opendatacommunities.org/id/london-borough-council/sutton,London Borough of Sutton,17/10/2018,1262892,40.00 , WWW.ICO.GOV.UK,ICO SUBSCRIPTION RENEWAL FOR 13 COUNCILLORS,Resources Directorate,Subscriptions - General,F450,
http://opendatacommunities.org/id/london-borough-council/sutton,London Borough of Sutton,17/10/2018,1262892,40.00 , WWW.ICO.GOV.UK,ICO SUBSCRIPTION RENEWAL FOR 13 COUNCILLORS,Resources Directorate,Subscriptions - General,F450,
http://opendatacommunities.org/id/london-borough-council/sutton,London Borough of Sutton,17/10/2018,1262892,40.00 , WWW.ICO.GOV.UK,ICO SUBSCRIPTION RENEWAL FOR 13 COUNCILLORS,Resources Directorate,Subscriptions - General,F450,
http://opendatacommunities.org/id/london-borough-council/sutton,London Borough of Sutton,17/10/2018,1262892,40.00 , WWW.ICO.GOV.UK,ICO SUBSCRIPTION RENEWAL FOR 13 COUNCILLORS,Resources Directorate,Subscriptions - General,F450,
http://opendatacommunities.org/id/london-borough-council/sutton,London Borough of Sutton,17/10/2018,1262892,40.00 , WWW.ICO.GOV.UK,ICO SUBSCRIPTION RENEWAL FOR 13 COUNCILLORS,Resources Directorate,Subscriptions - General,F450,
http://opendatacommunities.org/id/london-borough-council/sutton,London Borough of Sutton,17/10/2018,1262892,40.00 , WWW.ICO.GOV.UK,ICO SUBSCRIPTION RENEWAL FOR 13 COUNCILLORS,Resources Directorate,Subscriptions - General,F450,
http://opendatacommunities.org/id/london-borough-council/sutton,London Borough of Sutton,17/10/2018,1262892,40.00 , WWW.ICO.GOV.UK,ICO SUBSCRIPTION RENEWAL FOR 13 COUNCILLORS,Resources Directorate,Subscriptions - General,F450,
http://opendatacommunities.org/id/london-borough-council/sutton,London Borough of Sutton,17/10/2018,1262892,40.00 , WWW.ICO.GOV.UK,ICO SUBSCRIPTION RENEWAL FOR 13 COUNCILLORS,Resources Directorate,Subscriptions - General,F450,
http://opendatacommunities.org/id/london-borough-council/sutton,London Borough of Sutton,17/10/2018,1262892,40.00 , WWW.ICO.GOV.UK,ICO SUBSCRIPTION RENEWAL FOR 13 COUNCILLORS,Resources Directorate,Subscriptions - General,F450,
http://opendatacommunities.org/id/london-borough-council/sutton,London Borough of Sutton,06/06/2018,1262973,40.00 , WWW.ICO.GOV.UK,COUNCILLOR ICO RENEWAL,Resources Directorate,Subscriptions - General,F450,
http://opendatacommunities.org/id/london-borough-council/sutton,London Borough of Sutton,06/06/2018,1262973,40.00 , WWW.ICO.GOV.UK,COUNCILLOR ICO RENEWAL,Resources Directorate,Subscriptions - General,F450,
http://opendatacommunities.org/id/london-borough-council/sutton,London Borough of Sutton,06/06/2018,1262973,40.00 , WWW.ICO.GOV.UK,COUNCILLOR ICO RENEWAL,Resources Directorate,Subscriptions - General,F450,
http://opendatacommunities.org/id/london-borough-council/sutton,London Borough of Sutton,06/06/2018,1262973,40.00 , WWW.ICO.GOV.UK,COUNCILLOR ICO RENEWAL,Resources Directorate,Subscriptions - General,F450,
http://opendatacommunities.org/id/london-borough-council/sutton,London Borough of Sutton,08/06/2018,1262973,40.00 , WWW.ICO.GOV.UK,COUNCILLOR ICO RENEWAL,Resources Directorate,Subscriptions - General,F450,
http://opendatacommunities.org/id/london-borough-council/sutton,London Borough of Sutton,08/06/2018,1262973,40.00 , WWW.ICO.GOV.UK,COUNCILLOR ICO RENEWAL,Resources Directorate,Subscriptions - General,F450,
http://opendatacommunities.org/id/london-borough-council/sutton,London Borough of Sutton,08/06/2018,1262973,40.00 , WWW.ICO.GOV.UK,COUNCILLOR ICO RENEWAL,Resources Directorate,Subscriptions - General,F450,
http://opendatacommunities.org/id/london-borough-council/sutton,London Borough of Sutton,08/06/2018,1262973,40.00 , WWW.ICO.GOV.UK,COUNCILLOR ICO RENEWAL,Resources Directorate,Subscriptions - General,F450,
http://opendatacommunities.org/id/london-borough-council/sutton,London Borough of Sutton,08/06/2018,1262973,40.00 , WWW.ICO.GOV.UK,COUNCILLOR ICO RENEWAL,Resources Directorate,Subscriptions - General,F450,
http://opendatacommunities.org/id/london-borough-council/sutton,London Borough of Sutton,08/06/2018,1262973,40.00 , WWW.ICO.GOV.UK,COUNCILLOR ICO RENEWAL,Resources Directorate,Subscriptions - General,F450,
http://opendatacommunities.org/id/london-borough-council/sutton,London Borough of Sutton,08/06/2018,1262973,40.00 , WWW.ICO.GOV.UK,COUNCILLOR ICO RENEWAL,Resources Directorate,Subscriptions - General,F450,
http://opendatacommunities.org/id/london-borough-council/sutton,London Borough of Sutton,08/06/2018,1262973,40.00 , WWW.ICO.GOV.UK,COUNCILLOR ICO RENEWAL,Resources Directorate,Subscriptions - General,F450,
http://opendatacommunities.org/id/london-borough-council/sutton,London Borough of Sutton,08/06/2018,1262973,40.00 , WWW.ICO.GOV.UK,COUNCILLOR ICO RENEWAL,Resources Directorate,Subscriptions - General,F450,
http://opendatacommunities.org/id/london-borough-council/sutton,London Borough of Sutton,06/06/2018,1262973,40.00 , WWW.ICO.GOV.UK,COUNCILLOR ICO RENEWAL,Resources Directorate,Subscriptions - General,F450,
http://opendatacommunities.org/id/london-borough-council/sutton,London Borough of Sutton,06/06/2018,1262973,40.00 , WWW.ICO.GOV.UK,COUNCILLOR ICO RENEWAL,Resources Directorate,Subscriptions - General,F450,
http://opendatacommunities.org/id/london-borough-council/sutton,London Borough of Sutton,06/06/2018,1262973,40.00 , WWW.ICO.GOV.UK,COUNCILLOR ICO RENEWAL,Resources Directorate,Subscriptions - General,F450,
http://opendatacommunities.org/id/london-borough-council/sutton,London Borough of Sutton,06/06/2018,1262973,40.00 , WWW.ICO.GOV.UK,COUNCILLOR ICO RENEWAL,Resources Directorate,Subscriptions - General,F450,
http://opendatacommunities.org/id/london-borough-council/sutton,London Borough of Sutton,06/06/2018,1262973,40.00 , WWW.ICO.GOV.UK,COUNCILLOR ICO RENEWAL,Resources Directorate,Subscriptions - General,F450,
http://opendatacommunities.org/id/london-borough-council/sutton,London Borough of Sutton,06/06/2018,1262973,86.73 , AMAZON UK MARKETPLACE,USB CHARGERS (WS) AND PHONE CASE (EP),"Environment, Housing & Regeneration Directorate",Other Equipment - Purchase,F015,
http://opendatacommunities.org/id/london-borough-council/sutton,London Borough of Sutton,09/10/2018,1262892,50.00 , LANGUAGE LINE SERVICES,TRANSLATION OF PREVENT DOCUMENT,"Environment, Housing & Regeneration Directorate",Other Services,F340,
http://opendatacommunities.org/id/london-borough-council/sutton,London Borough of Sutton,01/10/2018,1262892,59.94 , TRAINLINE,GA TRAVEL TO SUTTON COLDFIELD,Resources Directorate,Conferences - Travel and Subsistence,A526,
http://opendatacommunities.org/id/london-borough-council/sutton,London Borough of Sutton,20/10/2018,1262892,20.00 , OYSTER AUTO-TOP UP,OYSTER TOP UP,Resources Directorate,Travelling and Subsistence Allowances,A530,
http://opendatacommunities.org/id/london-borough-council/sutton,London Borough of Sutton,14/10/2018,1262892,20.00 , OYSTER AUTO-TOP UP,OYSTER TOP UP,Resources Directorate,Travelling and Subsistence Allowances,A530,
http://opendatacommunities.org/id/london-borough-council/sutton,London Borough of Sutton,01/06/2018,1262973,20.00 , OYSTER AUTOTOPUP,OYSTER TOP UP,Resources Directorate,Travelling and Subsistence Allowances,A530,
http://opendatacommunities.org/id/london-borough-council/sutton,London Borough of Sutton,10/06/2018,1262973,20.00 , OYSTER AUTOTOPUP,OYSTER TOP UP,Resources Directorate,Travelling and Subsistence Allowances,A530,
http://opendatacommunities.org/id/london-borough-council/sutton,London Borough of Sutton,19/10/2018,1262892,20.00 , OYSTER AUTO-TOP UP,OYSTER TOP UP,Resources Directorate,Recruitment Expenses,A531,
http://opendatacommunities.org/id/london-borough-council/sutton,London Borough of Sutton,28/09/2018,1262892,20.00 , OYSTER AUTO-TOP UP,OYSTER TOP UP,Resources Directorate,Recruitment Expenses,A531,
http://opendatacommunities.org/id/london-borough-council/sutton,London Borough of Sutton,23/06/2018,1262973,33.33 , OYSTER BUS AUTOTOP,OYSTER TOP UP,Resources Directorate,Travelling and Subsistence Allowances,A530,
http://opendatacommunities.org/id/london-borough-council/sutton,London Borough of Sutton,04/10/2018,1262892,299.98 , WWW.ARGOS.CO.UK,"CL&G PURCHASE - COOKER, FREEZER",Resources Directorate,Grants,F473,
http://opendatacommunities.org/id/london-borough-council/sutton,London Borough of Sutton,02/10/2018,1262892,476.61 , WWW.ARGOS.CO.UK,"CL&G PURCHASE - COOKER, FREEZER & BED",Resources Directorate,Grants,F473,
http://opendatacommunities.org/id/london-borough-council/sutton,London Borough of Sutton,05/06/2018,1262973,114.12 , WWW.ARGOS.CO.UK,PURCHASE OF SINGLE DIVAN BED FOR CRISIS GRANT,Resources Directorate,Grants,F473,
http://opendatacommunities.org/id/london-borough-council/sutton,London Borough of Sutton,01/10/2018,1262892,416.65 , WWW.ARGOS.CO.UK,PURCHASE OF GOODS FOR CRISIS LOAN AND GRANT SCHEME,Resources Directorate,Grants,F473,
http://opendatacommunities.org/id/london-borough-council/sutton,London Borough of Sutton,27/09/2018,1262892,340.79 , WWW.ARGOS.CO.UK,PURCHASE OF GOODS FOR CRISIS LOAN AND GRANT SCHEME,Resources Directorate,Grants,F473,
http://opendatacommunities.org/id/london-borough-council/sutton,London Borough of Sutton,27/09/2018,1262892,141.66 , WWW.ARGOS.CO.UK,PURCHASE OF GOODS FOR CRISIS LOAN AND GRANT SCHEME,Resources Directorate,Grants,F473,
http://opendatacommunities.org/id/london-borough-council/sutton,London Borough of Sutton,23/10/2018,1262892,366.65 , WWW.ARGOS.CO.UK,PURCHASE OF ELECTRIC COOKER AND FRIDGE FREEZER FOR CRISIS LOAN,Resources Directorate,Grants,F473,
http://opendatacommunities.org/id/london-borough-council/sutton,London Borough of Sutton,21/10/2018,1262892,33.33 , OYSTER AUTO-TOP UP,REVENUES STAFF TRAVEL,Resources Directorate,Travelling and Subsistence Allowances,A530,
http://opendatacommunities.org/id/london-borough-council/sutton,London Borough of Sutton,29/09/2018,1262892,33.33 , OYSTER AUTO-TOP UP,REVENUES STAFF TRAVEL,Resources Directorate,Travelling and Subsistence Allowances,A530,
http://opendatacommunities.org/id/london-borough-council/sutton,London Borough of Sutton,16/10/2018,1262892,10.00 , WWW.GOV.UK,PROBATE CERTIFICATES X 1,Resources Directorate,General Office Expenses,F235,
http://opendatacommunities.org/id/london-borough-council/sutton,London Borough of Sutton,10/10/2018,1262892,70.00 , WWW.GOV.UK,PROBATE CERTIFICATES X 7,Resources Directorate,General Office Expenses,F235,
http://opendatacommunities.org/id/london-borough-council/sutton,London Borough of Sutton,19/06/2018,1262973,30.00 , WWW.GOV.UK,3 X PROBATE CERTIFICATES,Resources Directorate,General Office Expenses,F235,
http://opendatacommunities.org/id/london-borough-council/sutton,London Borough of Sutton,30/09/2018,1262892,33.33 , OYSTER AUTO-TOP UP,BENEFITS STAFF TRAVEL,Resources Directorate,Travelling and Subsistence Allowances,A530,
http://opendatacommunities.org/id/london-borough-council/sutton,London Borough of Sutton,19/06/2018,1262973,198.33 , THE PRINCIPAL MANCHEST,"INSURANCE - 3 ROOMS @ THE PRINCIPLE, MANCHESTER, 2 NIGHTS EACH.",Resources Directorate,Conferences - Fees,A525,
http://opendatacommunities.org/id/london-borough-council/sutton,London Borough of Sutton,19/06/2018,1262973,198.33 , THE PRINCIPAL MANCHEST,"INSURANCE - 3 ROOMS @ THE PRINCIPLE, MANCHESTER, 2 NIGHTS EACH.",Resources Directorate,Conferences - Fees,A525,
http://opendatacommunities.org/id/london-borough-council/sutton,London Borough of Sutton,19/06/2018,1262973,198.33 , THE PRINCIPAL MANCHEST,"INSURANCE - 3 ROOMS @ THE PRINCIPLE, MANCHESTER, 2 NIGHTS EACH.",Resources Directorate,Conferences - Fees,A525,
http://opendatacommunities.org/id/london-borough-council/sutton,London Borough of Sutton,19/06/2018,1262973,120.30 , TRAINLINE,TRAINS FOR ADE ADEBAYO,Resources Directorate,Travelling and Subsistence Allowances,A530,
http://opendatacommunities.org/id/london-borough-council/sutton,London Borough of Sutton,08/06/2018,1262973,54.78 , CLFDISTRIBUTION.CO,CLIPPER TEA ORDER FOR ANN SHERWOOD,Resources Directorate,Domestic Supplies,D801,
http://opendatacommunities.org/id/london-borough-council/sutton,London Borough of Sutton,03/10/2018,1262892,(30.00), WWW.VEOLIA.COM,2ND REFUND OF BULKY WASTE ONLINE PAYMENT TEST,Resources Directorate,General Office Expenses,F235,
http://opendatacommunities.org/id/london-borough-council/sutton,London Borough of Sutton,08/06/2018,1262973,(30.00), WWW.VEOLIA.COM,REFUND OF TEST PAYMENT FOR BULKY WASTE COLLECTION,Resources Directorate,General Office Expenses,F235,
http://opendatacommunities.org/id/london-borough-council/sutton,London Borough of Sutton,08/06/2018,1262973,(30.00), WWW.VEOLIA.COM,REFUND OF TEST PAYMENT FOR BULKY WASTE COLLECTION,Resources Directorate,General Office Expenses,F235,
http://opendatacommunities.org/id/london-borough-council/sutton,London Borough of Sutton,08/06/2018,1262973,(30.00), WWW.VEOLIA.COM,REFUND OF TEST PAYMENT FOR BULKY WASTE COLLECTION,Resources Directorate,General Office Expenses,F235,
http://opendatacommunities.org/id/london-borough-council/sutton,London Borough of Sutton,18/06/2018,1262973,218.03 , BEST WESTERN HOTELS,BEST WESTERN HOTEL CONNAUGHT -CIPFA CONFERENCE 10 - 12 JULY 2018,Resources Directorate,Hotel Accomodation,A512,
http://opendatacommunities.org/id/london-borough-council/sutton,London Borough of Sutton,28/04/2018,1262970,19.99 , AMAZON EU,AMAZON BOOK PURCHASE,Peoples Services Directorate,Personal Requisites,F106,
http://opendatacommunities.org/id/london-borough-council/sutton,London Borough of Sutton,02/05/2018,1262970,100.00 , WM MORRISONS,FOOD VOUCHERS,Peoples Services Directorate,C.C.A Food & Clothing,H213,
http://opendatacommunities.org/id/london-borough-council/sutton,London Borough of Sutton,13/06/2018,1262973,20.00 , OYSTER AUTOTOPUP,OYSTER TOP UP,Peoples Services Directorate,Travelling and Subsistence Allowances,A530,
http://opendatacommunities.org/id/london-borough-council/sutton,London Borough of Sutton,14/06/2018,1262973,20.00 , OYSTER AUTOTOPUP,OYSTER CARD,Peoples Services Directorate,Travelling and Subsistence Allowances,A530,
http://opendatacommunities.org/id/london-borough-council/sutton,London Borough of Sutton,02/05/2018,1262970,100.00 , WM MORRISONS,FOOD VOUCHERS BOUGHT FOR FSCP,Peoples Services Directorate,C.C.A Food & Clothing,H213,
http://opendatacommunities.org/id/london-borough-council/sutton,London Borough of Sutton,28/04/2018,1262970,67.10 , NATIONAL EXPRESS LIMIT,NATIONAL EXPRESS TICKET PURCHASED FOR CLIENT IN MENTAL HEALTH TEAM.,Peoples Services Directorate,Client Care/Assistance,H301,
http://opendatacommunities.org/id/london-borough-council/sutton,London Borough of Sutton,02/05/2018,1262970,100.00 , WM MORRISONS,FOOD VOUCHERS,Peoples Services Directorate,C.C.A Food & Clothing,H213,
http://opendatacommunities.org/id/london-borough-council/sutton,London Borough of Sutton,09/10/2018,1262892,858.00 , WWW.ERONOMICS.CO.,1029.60 - F015 6432 9999 - CHAIR,Peoples Services Directorate,Other Equipment - Purchase,F015,
http://opendatacommunities.org/id/london-borough-council/sutton,London Borough of Sutton,20/06/2018,1262973,27.44 , PAYPAL  GOOGLEADDON,GOOGLE PURCHASE,Peoples Services Directorate,Purchase of IT Equipment,F380,
http://opendatacommunities.org/id/london-borough-council/sutton,London Borough of Sutton,12/06/2018,1262973,84.00 , ACTION ON ELDER ABUSE,CONFERENCE,Peoples Services Directorate,Training - Course Fees,A520,
http://opendatacommunities.org/id/london-borough-council/sutton,London Borough of Sutton,12/10/2018,1262892,77.00 , AMAZON.CO.UK, F006 6478 9999 - AMAZON ORDER.PNG,Peoples Services Directorate,Books,F006,
http://opendatacommunities.org/id/london-borough-council/sutton,London Borough of Sutton,14/10/2018,1262892,56.99 , AMAZON.CO.UK,133.99 - F006 6478 9999 - AMAZON ORDER.PNG SPLIT TRANSCTION FROM ANOTHER AMAZON PURCHASE.,Peoples Services Directorate,Books,F006,
http://opendatacommunities.org/id/london-borough-council/sutton,London Borough of Sutton,27/04/2018,1262970,110.07 , AMAZON EU,SAFEGUARDING BOOKS FROM AMAZON,Peoples Services Directorate,Education Equipment,F009,
http://opendatacommunities.org/id/london-borough-council/sutton,London Borough of Sutton,01/05/2018,1262970,53.62 , AMAZON EU,BOOKS PURCHASED FOR ADULTS SAFEGUARDING.,Peoples Services Directorate,Education Equipment,F009,
http://opendatacommunities.org/id/london-borough-council/sutton,London Borough of Sutton,12/10/2018,1262892,10.00 , WWW.GOV.UK,GOLLOP ONLINE PROBATE SEARCH,Peoples Services Directorate,Fees - Other,F299,
http://opendatacommunities.org/id/london-borough-council/sutton,London Borough of Sutton,10/10/2018,1262892,10.00 , WWW.GOV.UK,SMITH ONLINE PROBATE SEARCH,Peoples Services Directorate,Fees - Other,F299,
http://opendatacommunities.org/id/london-borough-council/sutton,London Borough of Sutton,25/10/2018,1262892,22.47 , AMZN MKTP UK MT1458384,REST CENTRE DOOR WEDGES,Peoples Services Directorate,Other Equipment - Purchase,F015,
